Workbook

Sheet DADOS
A1: 27476 | B1: PO - Planilha Orçamentária / PLQ - Planilha de Levantamento de Quantidades / CFF - Cronograma Físico Financeiro
A2: v008
A4: INSTRUÇÕES DE USO E PREENCHIMENTO
A6: 1. Este documento somente pode ser utilizado nas versões do Excel 2003 ou superior. Não deve ser utilizado versões do BROffice. O Documento deve ser salvo SOMENTE em extensão habilitada para macros (.xls ou .xlsm). Se o documento for salvo na extensão .xlsx, o arquivo será INUTILIZADO.
A8: 2. Para funcionamento pleno desse arquivo, a Segurança de Macros do Excel deve ser habilitada.
A10: 2.1 Na Versão Excel 2003, selecione na Faixa de Opções: Ferramentas --> Macro --> Segurança --> Na aba Nível de Segurança selecione a Opção "Baixo" --> Clique em OK --> Feche e abra o Excel novamente para utilizar a Planilha.
A12: 2.2 Na Versão Excel 2007 ou superior, selecione na Faixa de Opções: Arquivo --> Opções --> Central de Confiabilidade --> Configurações da Central de Confiabilidade --> Configurações de Macro --> Habilitar todas as Macros --> Clique em OK --> Feche e abra o excel novamente para utilizar a Planilha.
A14: 3. O Preenchimento deve ser feito somente nas células em amarelo. As outras células são de preenchimento Automático.
A16: 4. Preferências de Elaboração do Orçamento
A18: 4.1. Preenchimento de Quantidades
A22: 5. Ordem de Preenchimento
A24: 5.1. na Aba DADOS
A26: 5.1.1. Preencha no Quadro abaixo os Dados do TC/CR:
A28: Nº OPERAÇÃO | C28: GESTOR | F28: PROGRAMA | J28: AÇÃO / MODALIDADE | P28: OBJETO
A29: 1076696-20 | C29: Marino José Frey | F29: Planejamento Urbano | J29: Pavimentação Asfáltica | P29: Pavimentação Asfáltica e construção de passeios públicos das Ruas Felipe Arsênio Bamberg e Amelda Tereza Bieger
A31: PROPONENTE / TOMADOR | G31: MUNICÍPIO / UF | K31: LOCALIDADE / ENDEREÇO | Q31: APELIDO DO EMPREENDIMENTO
A32: Prefeitura Muncipal de Tunápolis | G32: Tunápolis/SC | K32: Rua João Castilho nº 111
A35: 5.1.2. Preencha no quadro abaixo as informações sobre o orçamento:
A37: DATA BASE | C37: DESON. | D37: LOCALIDADE DO SINAPI | G37: DESCRIÇÃO DO LOTE | T37: BDI 1 | U37: BDI 2 | V37: BDI 3 | W37: BDI 4 | X37: BDI 5
A38: 2022-01-01 | C38: Não | D38: Florianópolis / SC | T38: =IF(ISERROR(INDIRECT("'BDI ("&RIGHT(T37,1)&")'!N27")),"",INDIRECT("'BDI ("&RIGHT(T37,1)&")'!N27")) -> 0.22 | U38: =IF(ISERROR(INDIRECT("'BDI ("&RIGHT(U37,1)&")'!N27")),"",INDIRECT("'BDI ("&RIGHT(U37,1)&")'!N27")) ->  | V38: =IF(ISERROR(INDIRECT("'BDI ("&RIGHT(V37,1)&")'!N27")),"",INDIRECT("'BDI ("&RIGHT(V37,1)&")'!N27")) ->  | W38: =IF(ISERROR(INDIRECT("'BDI ("&RIGHT(W37,1)&")'!N27")),"",INDIRECT("'BDI ("&RIGHT(W37,1)&")'!N27")) ->  | X38: =IF(ISERROR(INDIRECT("'BDI ("&RIGHT(X37,1)&")'!N27")),"",INDIRECT("'BDI ("&RIGHT(X37,1)&")'!N27")) -> 
A40: 4.1.2. Preencha no quadro abaixo as informações sobre o orçamento licitado:
A42: CTEF n.º | C42: NOME DA EMPRESA | H42: DATA BASE | J42: DESON. | K42: REGIME DE EXECUÇÃO | N42: ACOMP. | O42: OBJETO CTEF | U42: DATA ASSINATURA | W42: VIGÊNCIA
A45: 5.1.3. Preencha a data de Início da Obra:
A47: DATA INÍCIO
A48: 2022-04-11
A50: 5.1.4. Preencha no(s) Quadro(s) abaixo os Dados do(s) Responsável(is) Técnico(s) pela elaboração do Orçamento:
G52: Exibir o 2° Quadro de Assinatura? | K52: SIM
A54: Nome: | B54: Leonardo I. Massing Moreira | G54: Nome:
A55: =IF(OR(TipoOrçamento="BASE",TipoOrçamento="REPROGRAMADONPL"),"Título:","Cargo:") -> Título: | B55: Engenheiro Civil | G55: =A55 -> Título:
A56: =IF(OR(TipoOrçamento="BASE",TipoOrçamento="REPROGRAMADONPL"),"CREA/CAU:","Empresa:") -> CREA/CAU: | B56: 140.221-0 | G56: =A56 -> CREA/CAU:
A57: =IF(OR(TipoOrçamento="BASE",TipoOrçamento="REPROGRAMADONPL"),"ART/RRT:","CNPJ:") -> ART/RRT: | G57: =A57 -> ART/RRT:
A60: 5.2. Legenda das Abas
A62: 5.2.1. LARANJA: Aba DADOS. Preenchimento Obrigatório. Impressão Dispensada.
A63: 5.2.2. AMARELO: Abas BDI, PO, PLQ e CFF. Preenchimento e Impressão Obrigatórias. O preenchimento da Aba BDI é dispensada para os casos de Aquisição Direta de Materiais e Equipamentos. A Impressão da Aba PLQ pode ser dispensada para casos de Frente de Obra Única.
A65: 5.3. na Aba BDI (Bonificações e Despesas Indiretas):
A67: 5.3.1. Escolha o tipo de empreendimento.
A68: 5.3.2. Escolha se o BDI será do tipo desonerado ou não (aba DADOS)
A69: 5.3.3. Informe a base de cálculo do ISS (0 a 100%).
A70: 5.3.4. Informe a alíquota do ISS (Normalmente de 2 a 5%).
A71: 5.3.5. Defina na tabela os percentuais a serem adotados para cada item que compõe o BDI nos campos em amarelo.
A72: 5.3.6. Preencha o campo observações se necessário (recomendado para os orçamentos que utilizam mais de um BDI).
A74: 5.4. na Aba PO (Planilha Orçamentária):
A76: 5.4.1. Primeiramente, selecione os níveis de cada item do orçamento na coluna NÍVEL.
A77: 5.4.1.1: O nível de "Serviço" serve tanto para serviços ou insumos (mão-de-obra / material / equipamento / veículo / máquina / ferramenta / etc). Um "nível 2/3/4" é um título (é preenchida apenas a coluna descrição) utilizado para organizar melhor a planilha orçamentária e engloba (agrupa) serviços e agrupadores de nível inferior.
A78: 5.4.2. Após a seleção dos níveis, preencha, para cada serviço, as informações sobre a Fonte de Referência, (SINAPI, SICRO, SIURB, etc) e o respectivo Código de Referência.
A79: 5.4.3. Esta planilha é compatível com o arquivo REFERÊNCIA distribuído pela CAIXA. Caso o arquivo REFERÊNCIA esteja aberto, será possível buscar um código através do botão "Buscar Código". Desta forma a descrição dos serviços será preenchida automaticamente (podendo ser substituída). Caso contrário, seu preenchimento deve ser manual.
A80: 5.4.3.1. As descrições e unidades preenchidas automaticamente ficarão vinculadas ao arquivo REFERÊNCIA até que se use o botão "Fixar Descrições", que quebra a fórmula e transforma as descrições em texto.
A81: 5.4.4. Preencher o custo unitário do serviço/insumo na Coluna CUSTO UNITÁRIO. ATENÇÃO: o custo unitário adotado deve ser menor ou igual ao contido na tabela de referência ou mediana das cotações de mercado.
A82: 5.4.5. Indicar o BDI adotado para cada serviço/insumo na Coluna BDI. Preferencialmente selecione uma das opções da lista suspensa que aparecerá na célula, esta lista contém os 05 BDIs que podem ser preenchidos na Aba BDI (conforme item 5.2 das instruções). Caso seja necessária a adoção de mais de 05 valores diferentes de BDI, digite o percentual diretamente na célula.
A83: 5.4.6. Conforme selecionado no item 4.1. desta Aba, a Coluna Quantidade pode ser preenchida diretamente na PO, ou representar a soma das quantidades de cada Frente de Obra, informadas na aba PLQ (Planilha de Levantamento de Quantitativos).
A84: 5.4.7. OBSERVAÇÃO: As demais colunas (Item / Quantidade / Preço Unitário / Preço Total) são de preenchimento automático. Não tente preenche-las ou alterá-las na Aba PO.
A85: 5.4.8. Se for necessário acrescentar ou excluir linhas da Planilha Orçamentária, utilize o Botão EDITAR PLANILHA e selecione as opções no quadro. ATENÇÃO: quanto maior o número de linhas mais lento será o processamento dos dados, então acrescente apenas o número necessário ou um pouco a mais.
A86: 5.4.8.1. Evite deixar linhas em branco no corpo da Planilha Orçamentária.
A87: 5.4.9. Caso deseje importar os dados de outro arquivo utilize apenas a opção COLAR ESPECIAL ==> VALORES.
A88: 5.4.10. Clique no Botão LICITAR / REPROGRAMAR para preencher o Orçamento Licitado ou Reprogramado.
A90: 5.5. na Aba PLQ (Planilha de Levantamento de Quantitativos):
A92: 5.5.1. Preencha primeiramente as Frentes de Obra.
A93: 5.5.1.1. Exemplos de Frentes de Obra (Rua A trecho 01 / Rua A trecho 02 / Rua B ; UH 01 / UH 02 / UH 03).
A94: 5.5.2. Preencha as quantidades dos serviços por frente de obra. A soma das quantidades de todas as frentes de um determinado serviço será a quantidade exibida na Planilha Orçamentária.
A95: 5.5.3. Caso deseje incluir ou excluir frentes, utilize os botões ADICIONAR e EXCLUIR.
A97: 5.6. na Aba CFF (Cronograma Físico-Financeiro):
A99: 5.6.1. Preencha a data de início da obra na aba Dados.
A100: 5.6.2. Preencha as porcentagens previstas por parcela para cada meta ou macrosserviço.
A101: 5.6.3. Para atualizar o Cronograma conforme o Orçamento e incluir ou excluir parcelas, utilize o botão EDITAR / ATUALIZAR CRONOGRAMA.
L107: (Selecione uma Localidade)
L108: Aracaju / SE | S108: =T38 -> 0.22
L109: Belém / PA | S109: =U38 -> 
L110: Belo Horizonte / MG | S110: =V38 -> 
L111: Boa Vista / RR | S111: =W38 -> 
L112: Brasília / DF | S112: =X38 -> 
L113: Campo Grande / MS
L114: Cuiabá / MT
L115: Curitiba / PR | P115: Empreitada Preço Global
L116: Florianópolis / SC | P116: Empreitada Preço Unitário
L117: Fortaleza / CE | P117: Empreitada Integral
L118: Goiânia / GO | P118: Tarefa
L119: João Pessoa / PB | P119: Contratação Integrada
L120: Macapá / AP | P120: Não se aplica
L121: Maceió / AL
L122: Manaus / AM | P122: BM
L123: Natal / RN | P123: PLE
L124: Palmas / TO
L125: Porto Alegre / RS
L126: Porto Velho / RO
L127: Recife / PE
L128: Rio Branco / AC
L129: Rio de Janeiro / RJ
L130: Salvador / BA
L131: São Luís / MA
L132: São Paulo / SP
L133: Teresina / PI
L134: Vitória / ES
A220: =A28 -> Nº OPERAÇÃO | C220: =C28 -> GESTOR | F220: =F28 -> PROGRAMA | J220: =J28 -> AÇÃO / MODALIDADE | P220: =P28 -> OBJETO
A221: =IF(A29="","",A29) -> 1076696-20 | C221: =IF(C29="","",C29) -> Marino José Frey | F221: =IF(F29="","",F29) -> Planejamento Urbano | J221: =IF(J29="","",J29) -> Pavimentação Asfáltica | L221: =IF(#REF!="","",#REF!) ->  | N221: =IF(#REF!="","",#REF!) ->  | P221: =IF(P29="","",P29) -> Pavimentação Asfáltica e construção de passeios públicos das Ruas Felipe Arsênio Bamberg e Amelda Tereza Bieger
A223: =A31 -> PROPONENTE / TOMADOR | G223: =G31 -> MUNICÍPIO / UF | K223: =K31 -> LOCALIDADE / ENDEREÇO | Q223: =Q31 -> APELIDO DO EMPREENDIMENTO
A224: =IF(A32="","",A32) -> Prefeitura Muncipal de Tunápolis | G224: =IF(G32="","",G32) -> Tunápolis/SC | H224: =IF(I32="","",I32) ->  | J224: =IF(#REF!="","",#REF!) ->  | K224: =IF(K32="","",K32) -> Rua João Castilho nº 111 | Q224: =IF(Q32="","",Q32) -> 
A226: =A37 -> DATA BASE | C226: =C37 -> DESON. | D226: =D37 -> LOCALIDADE DO SINAPI | G226: =G37 -> DESCRIÇÃO DO LOTE | T226: =T37 -> BDI 1 | U226: =U37 -> BDI 2 | V226: =V37 -> BDI 3 | W226: =W37 -> BDI 4 | X226: =X37 -> BDI 5
A227: =IF(A38="","",A38) -> 2022-01-01 | C227: =IF(C38="","",C38) -> Não | D227: Florianópolis / SC | T227: 0.22
A229: CTEF n.º | C229: NOME DA EMPRESA / CNPJ: | H229: DATA BASE | J229: DESON. | K229: REGIME DE EXECUÇÃO | N229: ACOMP. | O229: OBJETO CTEF | U229: DATA ASSINATURA | W229: VIGÊNCIA
A230: =IF(A43="","",A43) ->  | C230: =IF(C43="","",C43) ->  | E230: =IF(E43="","",E43) ->  | G230: =IF(G43="","",G43) ->  | H230: =IF(H43="","",H43) ->  | I230: =IF(I43="","",I43) ->  | J230: =IF(J43="","",J43) ->  | K230: =IF(K43="","",K43) ->  | M230: =IF(M43="","",M43) ->  | N230: =IF(N43="","",N43) ->  | O230: =IF(O43="","",O43) ->  | Q230: =IF(Q43="","",Q43) ->  | S230: =IF(S43="","",S43) ->  | U230: =IF(U43="","",U43) ->  | W230: =IF(W43="","",W43) -> 

Sheet BDI (1)
E1: MIN | F1: MED | G1: MAX | N1: ="Quadro de Composição do BDI "&MID(CELL("nome.arquivo",N1),5+FIND("BDI (",CELL("nome.arquivo",N1)),1) -> Quadro de Composição do BDI 1
A2: Construção e Reforma de Edifícios | B2: AC | C2: =CONCATENATE(A2,"-",B2) -> Construção e Reforma de Edifícios-AC | E2: 0.03 | F2: 0.04 | G2: 0.055
A3: =A2 -> Construção e Reforma de Edifícios | B3: SG | C3: Construção e Reforma de Edifícios-SG | E3: 0.008 | F3: 0.008 | G3: 0.01
A4: =A3 -> Construção e Reforma de Edifícios | B4: R | C4: Construção e Reforma de Edifícios-R | E4: 0.0097 | F4: 0.0127 | G4: 0.0127 | I4: Nº TC/CR | K4: PROPONENTE / TOMADOR
A5: =A4 -> Construção e Reforma de Edifícios | B5: DF | C5: Construção e Reforma de Edifícios-DF | E5: 0.0059 | F5: 0.0123 | G5: 0.0139 | I5: =DADOS!A29 -> 1076696-20 | K5: =DADOS!A32 -> Prefeitura Muncipal de Tunápolis
A6: =A5 -> Construção e Reforma de Edifícios | B6: L | C6: Construção e Reforma de Edifícios-L | E6: 0.0616 | F6: 0.074 | G6: 0.0896
A7: =A6 -> Construção e Reforma de Edifícios | B7: BDI PAD | C7: Construção e Reforma de Edifícios-BDI PAD | E7: 0.2034 | F7: 0.2212 | G7: 0.25 | I7: OBJETO
A8: Construção de Praças Urbanas, Rodovias, Ferrovias e recapeamento e pavimentação de vias urbanas | B8: AC | C8: Construção de Praças Urbanas, Rodovias, Ferrovias e recapeamento e pavimentação de vias urbanas-AC | E8: 0.038 | F8: 0.0401 | G8: 0.0467 | I8: =DADOS!P29 -> Pavimentação Asfáltica e construção de passeios públicos das Ruas Felipe Arsênio Bamberg e Amelda Tereza Bieger
A9: Construção de Praças Urbanas, Rodovias, Ferrovias e recapeamento e pavimentação de vias urbanas | B9: SG | C9: Construção de Praças Urbanas, Rodovias, Ferrovias e recapeamento e pavimentação de vias urbanas-SG | E9: 0.0032 | F9: 0.004 | G9: 0.0074
A10: Construção de Praças Urbanas, Rodovias, Ferrovias e recapeamento e pavimentação de vias urbanas | B10: R | C10: Construção de Praças Urbanas, Rodovias, Ferrovias e recapeamento e pavimentação de vias urbanas-R | E10: 0.005 | F10: 0.0056 | G10: 0.0097 | I10: TIPO DE OBRA DO EMPREENDIMENTO | Q10: DESONERAÇÃO
A11: Construção de Praças Urbanas, Rodovias, Ferrovias e recapeamento e pavimentação de vias urbanas | B11: DF | C11: Construção de Praças Urbanas, Rodovias, Ferrovias e recapeamento e pavimentação de vias urbanas-DF | E11: 0.0102 | F11: 0.0111 | G11: 0.0121 | I11: Construção de Praças Urbanas, Rodovias, Ferrovias e recapeamento e pavimentação de vias urbanas | Q11: =DADOS!$C$38 -> Não
A12: Construção de Praças Urbanas, Rodovias, Ferrovias e recapeamento e pavimentação de vias urbanas | B12: L | C12: Construção de Praças Urbanas, Rodovias, Ferrovias e recapeamento e pavimentação de vias urbanas-L | E12: 0.0664 | F12: 0.073 | G12: 0.0869
A13: Construção de Praças Urbanas, Rodovias, Ferrovias e recapeamento e pavimentação de vias urbanas | B13: BDI PAD | C13: Construção de Praças Urbanas, Rodovias, Ferrovias e recapeamento e pavimentação de vias urbanas-BDI PAD | E13: 0.196 | F13: 0.2097 | G13: 0.2423 | I13: Conforme legislação tributária municipal, definir estimativa de percentual da base de cálculo para o ISS: | Q13: 1
A14: Construção de Redes de Abastecimento de Água, Coleta de Esgoto | B14: AC | C14: Construção de Redes de Abastecimento de Água, Coleta de Esgoto-AC | E14: 0.0343 | F14: 0.0493 | G14: 0.0671 | I14: Sobre a base de cálculo, definir a respectiva alíquota do ISS (entre 2% e 5%): | Q14: 0.03
A15: =A14 -> Construção de Redes de Abastecimento de Água, Coleta de Esgoto | B15: SG | C15: Construção de Redes de Abastecimento de Água, Coleta de Esgoto-SG | E15: 0.0028 | F15: 0.0049 | G15: 0.0075
I16: Itens | M16: Siglas | N16: % Adotado | O16: Situação | P16: 1º Quartil | Q16: Médio | R16: 3º Quartil | T16: =IF(V27,"Para BDI fora do intervalo estatístico, deve ser apresentado Relatório Técnico Circunstanciado justificando a adoção do percentual de cada parcela do BDI.","") -> 
A17: =A15 -> Construção de Redes de Abastecimento de Água, Coleta de Esgoto | B17: R | C17: Construção de Redes de Abastecimento de Água, Coleta de Esgoto-R | E17: 0.01 | F17: 0.0139 | G17: 0.0174
A18: =A17 -> Construção de Redes de Abastecimento de Água, Coleta de Esgoto | B18: DF | C18: Construção de Redes de Abastecimento de Água, Coleta de Esgoto-DF | E18: 0.0094 | F18: 0.0099 | G18: 0.0117 | I18: =IF($I$11=$A$59,"Encargos Sociais incidentes sobre a mão de obra","Administração Central") -> Administração Central | M18: =IF($I$11=$A$59,"K1","AC") -> AC | N18: 0.0401 | O18: - | P18: =VLOOKUP(CONCATENATE(I$11,"-",M18),$C$2:$G$49,3,FALSE) -> 0.038 | Q18: =VLOOKUP(CONCATENATE(I$11,"-",M18),$C$2:$G$49,4,FALSE) -> 0.0401 | R18: =VLOOKUP(CONCATENATE(I$11,"-",M18),$C$2:$G$49,5,FALSE) -> 0.0467
A19: =A18 -> Construção de Redes de Abastecimento de Água, Coleta de Esgoto | B19: L | C19: Construção de Redes de Abastecimento de Água, Coleta de Esgoto-L | E19: 0.0674 | F19: 0.0804 | G19: 0.094 | I19: =IF($I$11=$A$59,"Administração Central da empresa ou consultoria - overhead","Seguro e Garantia") -> Seguro e Garantia | M19: =IF($I$11=$A$59,"K2","SG") -> SG | N19: 0.004 | O19: - | P19: =VLOOKUP(CONCATENATE(I$11,"-",M19),$C$2:$G$49,3,FALSE) -> 0.0032 | Q19: =VLOOKUP(CONCATENATE(I$11,"-",M19),$C$2:$G$49,4,FALSE) -> 0.004 | R19: =VLOOKUP(CONCATENATE(I$11,"-",M19),$C$2:$G$49,5,FALSE) -> 0.0074
A20: =A19 -> Construção de Redes de Abastecimento de Água, Coleta de Esgoto | B20: BDI PAD | C20: Construção de Redes de Abastecimento de Água, Coleta de Esgoto-BDI PAD | E20: 0.2076 | F20: 0.2418 | G20: 0.2644 | I20: =IF($I$11=$A$59,"","Risco") -> Risco | M20: =IF($I$11=$A$59,"","R") -> R | N20: 0.0056 | O20: - | P20: =VLOOKUP(CONCATENATE(I$11,"-",M20),$C$2:$G$49,3,FALSE) -> 0.005 | Q20: =VLOOKUP(CONCATENATE(I$11,"-",M20),$C$2:$G$49,4,FALSE) -> 0.0056 | R20: =VLOOKUP(CONCATENATE(I$11,"-",M20),$C$2:$G$49,5,FALSE) -> 0.0097
A21: Construção e Manutenção de Estações e Redes de Distribuição de Energia Elétrica | B21: AC | C21: Construção e Manutenção de Estações e Redes de Distribuição de Energia Elétrica-AC | E21: 0.0529 | F21: 0.0592 | G21: 0.0793 | I21: =IF($I$11=$A$59,"","Despesas Financeiras") -> Despesas Financeiras | M21: =IF($I$11=$A$59,"","DF") -> DF | N21: 0.0111 | O21: - | P21: =VLOOKUP(CONCATENATE(I$11,"-",M21),$C$2:$G$49,3,FALSE) -> 0.0102 | Q21: =VLOOKUP(CONCATENATE(I$11,"-",M21),$C$2:$G$49,4,FALSE) -> 0.0111 | R21: =VLOOKUP(CONCATENATE(I$11,"-",M21),$C$2:$G$49,5,FALSE) -> 0.0121
A22: =A21 -> Construção e Manutenção de Estações e Redes de Distribuição de Energia Elétrica | B22: SG | C22: Construção e Manutenção de Estações e Redes de Distribuição de Energia Elétrica-SG | E22: 0.0025 | F22: 0.0051 | G22: 0.0056 | I22: =IF($I$11=$A$59,"Margem bruta da empresa de consultoria","Lucro") -> Lucro | M22: =IF($I$11=$A$59,"K3","L") -> L | N22: 0.073 | O22: - | P22: =VLOOKUP(CONCATENATE(I$11,"-",M22),$C$2:$G$49,3,FALSE) -> 0.0664 | Q22: =VLOOKUP(CONCATENATE(I$11,"-",M22),$C$2:$G$49,4,FALSE) -> 0.073 | R22: =VLOOKUP(CONCATENATE(I$11,"-",M22),$C$2:$G$49,5,FALSE) -> 0.0869
A23: =A22 -> Construção e Manutenção de Estações e Redes de Distribuição de Energia Elétrica | B23: R | C23: Construção e Manutenção de Estações e Redes de Distribuição de Energia Elétrica-R | E23: 0.01 | F23: 0.0148 | G23: 0.0197 | I23: Tributos (impostos COFINS 3%, e PIS 0,65%) | M23: CP | N23: 0.0365 | O23: - | P23: 0.0365 | Q23: 0.0365 | R23: 0.0365
A24: =A23 -> Construção e Manutenção de Estações e Redes de Distribuição de Energia Elétrica | B24: DF | C24: Construção e Manutenção de Estações e Redes de Distribuição de Energia Elétrica-DF | E24: 0.0101 | F24: 0.0107 | G24: 0.0111 | I24: Tributos (ISS, variável de acordo com o município) | M24: ISS | N24: =IF($I$11<>$A$58,Q14*Q13,0) -> 0.03 | O24: - | P24: 0 | Q24: 0.025 | R24: 0.05
A25: =A24 -> Construção e Manutenção de Estações e Redes de Distribuição de Energia Elétrica | B25: L | C25: Construção e Manutenção de Estações e Redes de Distribuição de Energia Elétrica-L | E25: 0.08 | F25: 0.0831 | G25: 0.0951 | I25: Tributos (Contribuição Previdenciária sobre a Receita Bruta - 0% ou 4,5% - Desoneração) | M25: CPRB | N25: =IF(AND($I$11<>$A$58,Q11="Sim"),4.5%,0%) -> 0 | O25: =IF(AND(N25>=P25, N25<=R25), "OK", "Não OK") -> OK | P25: 0 | Q25: 0.045 | R25: 0.045
A26: =A25 -> Construção e Manutenção de Estações e Redes de Distribuição de Energia Elétrica | B26: BDI PAD | C26: Construção e Manutenção de Estações e Redes de Distribuição de Energia Elétrica-BDI PAD | E26: 0.24 | F26: 0.2584 | G26: 0.2786 | I26: BDI SEM desoneração (Fórmula Acórdão TCU) | M26: BDI PAD | N26: =IF($I$11=$A$58,0,ROUND((((1+N18+N19+N20)*(1+N21)*(1+N22)/(1-(N23+N24)))-1),4)) -> 0.22 | O26: =IF(OR($I$11=$A$59,$I$11=$A$58,AND(N26>=P26, N26<=R26)), "OK", "FORA DO INTERVALO") -> OK | P26: =IF($I$11=$A$58,0,VLOOKUP(CONCATENATE($I$11,"-",$M26),$C$2:$G$49,3,FALSE)) -> 0.196 | Q26: =IF($I$11=$A$58,0,VLOOKUP(CONCATENATE($I$11,"-",$M26),$C$2:$G$49,4,FALSE)) -> 0.2097 | R26: =IF($I$11=$A$58,0,VLOOKUP(CONCATENATE($I$11,"-",$M26),$C$2:$G$49,5,FALSE)) -> 0.2423
A27: Obras Portuárias, Marítimas e Fluviais | B27: AC | C27: Obras Portuárias, Marítimas e Fluviais-AC | E27: 0.04 | F27: 0.0552 | G27: 0.0785 | I27: BDI COM desoneração | M27: BDI DES | N27: =IF($I$11=$A$58,0,ROUND((((1+N18+N19+N20)*(1+N21)*(1+N22)/(1-(N23+N24+N25)))-1),4)) -> 0.22 | O27: =IF(Q11<>"Sim","",O26) ->  | V27: =AND(COUNTA(N18:N23)=6,O26<>"ok",NOT(V29)) -> FALSE | W27: pedir anexo
A28: =A27 -> Obras Portuárias, Marítimas e Fluviais | B28: SG | C28: Obras Portuárias, Marítimas e Fluviais-SG | E28: 0.0081 | F28: 0.0122 | G28: 0.0199
A29: =A28 -> Obras Portuárias, Marítimas e Fluviais | B29: R | C29: Obras Portuárias, Marítimas e Fluviais-R | E29: 0.0146 | F29: 0.0232 | G29: 0.0316 | I29: =IF(V29,"X","") ->  | J29: Anexo: Relatório Técnico Circunstanciado justificando a adoção do percentual de cada parcela do BDI. | V29: FALSE | W29: anexo apresentado
I31: Os valores de BDI foram calculados com o emprego da fórmula:
A32: =A29 -> Obras Portuárias, Marítimas e Fluviais | B32: DF | C32: Obras Portuárias, Marítimas e Fluviais-DF | E32: 0.0094 | F32: 0.0102 | G32: 0.0133 | L32: =IF(Q11="Sim","BDI.DES =","BDI.PAD =") -> BDI.PAD = | M32: =IF($I$11=$A$59,"(1+K1+K2)*(1+K3)","(1+AC + S + R + G)*(1 + DF)*(1+L)") -> (1+AC + S + R + G)*(1 + DF)*(1+L) | P32: - 1
A33: =A32 -> Obras Portuárias, Marítimas e Fluviais | B33: L | C33: Obras Portuárias, Marítimas e Fluviais-L | E33: 0.0714 | F33: 0.084 | G33: 0.1043 | M33: =IF(Q11="Sim","(1-CP-ISS-CRPB)","(1-CP-ISS)") -> (1-CP-ISS)
A34: =A33 -> Obras Portuárias, Marítimas e Fluviais | B34: BDI PAD | C34: Obras Portuárias, Marítimas e Fluviais-BDI PAD | E34: 0.228 | F34: 0.2748 | G34: 0.3095
I35: =CONCATENATE("Declaro para os devidos fins que, conforme legislação tributária municipal, a base de cálculo para ",I11,", é de ",Q13*100,"%, com a respectiva alíquota de ",Q14*100,"%.") -> Declaro para os devidos fins que, conforme legislação tributária municipal, a base de cálculo para Construção de Praças Urbanas, Rodovias, Ferrovias e recapeamento e pavimentação de vias urbanas, é de 100%, com a respectiva alíquota de 3%.
I37: =CONCATENATE("Declaro para os devidos fins que o regime de Contribuição Previdenciária sobre a Receita Bruta adotado para elaboração do orçamento foi ",IF(Q11="Sim","COM","SEM")," Desoneração, e que esta é a alternativa mais adequada para a Administração Pública.") -> Declaro para os devidos fins que o regime de Contribuição Previdenciária sobre a Receita Bruta adotado para elaboração do orçamento foi SEM Desoneração, e que esta é a alternativa mais adequada para a Administração Pública.
A38: Fornecimento de Materiais e Equipamentos (aquisição indireta - em conjunto com licitação de obras) | B38: AC | C38: Fornecimento de Materiais e Equipamentos (aquisição indireta - em conjunto com licitação de obras)-AC | E38: 0.015 | F38: 0.0345 | G38: 0.0449
A39: =A38 -> Fornecimento de Materiais e Equipamentos (aquisição indireta - em conjunto com licitação de obras) | B39: SG | C39: Fornecimento de Materiais e Equipamentos (aquisição indireta - em conjunto com licitação de obras)-SG | E39: 0.003 | F39: 0.0048 | G39: 0.0082 | I39: Observações:
A40: =A39 -> Fornecimento de Materiais e Equipamentos (aquisição indireta - em conjunto com licitação de obras) | B40: R | C40: Fornecimento de Materiais e Equipamentos (aquisição indireta - em conjunto com licitação de obras)-R | E40: 0.0056 | F40: 0.0085 | G40: 0.0089
A41: =A40 -> Fornecimento de Materiais e Equipamentos (aquisição indireta - em conjunto com licitação de obras) | B41: DF | C41: Fornecimento de Materiais e Equipamentos (aquisição indireta - em conjunto com licitação de obras)-DF | E41: 0.0085 | F41: 0.0085 | G41: 0.0111
A42: =A41 -> Fornecimento de Materiais e Equipamentos (aquisição indireta - em conjunto com licitação de obras) | B42: L | C42: Fornecimento de Materiais e Equipamentos (aquisição indireta - em conjunto com licitação de obras)-L | E42: 0.035 | F42: 0.0511 | G42: 0.0622 | I42: =PO!K69 -> Tunápolis/SC | O42: =PO!K72 -> 2022-04-11
A43: =A42 -> Fornecimento de Materiais e Equipamentos (aquisição indireta - em conjunto com licitação de obras) | B43: BDI PAD | C43: Fornecimento de Materiais e Equipamentos (aquisição indireta - em conjunto com licitação de obras)-BDI PAD | E43: 0.111 | F43: 0.1402 | G43: 0.168 | I43: Local | O43: Data
A44: Estudos e Projetos, Planos e Gerenciamento e outros correlatos | B44: K1 | C44: Estudos e Projetos, Planos e Gerenciamento e outros correlatos-K1 | E44: - | F44: - | G44: -
A45: =A44 -> Estudos e Projetos, Planos e Gerenciamento e outros correlatos | B45: K2 | C45: Estudos e Projetos, Planos e Gerenciamento e outros correlatos-K2 | E45: - | F45: 0.2 | G45: -
A46: =A45 -> Estudos e Projetos, Planos e Gerenciamento e outros correlatos | C46: Estudos e Projetos, Planos e Gerenciamento e outros correlatos- | E46: - | F46: - | G46: - | I46: Responsável Técnico | O46: Responsável Tomador
A47: =A46 -> Estudos e Projetos, Planos e Gerenciamento e outros correlatos | C47: Estudos e Projetos, Planos e Gerenciamento e outros correlatos- | E47: - | F47: - | G47: - | I47: Nome: | J47: =DADOS!B54 -> Leonardo I. Massing Moreira | O47: Nome: | P47: Marino José Frey
A48: =A47 -> Estudos e Projetos, Planos e Gerenciamento e outros correlatos | B48: K3 | C48: Estudos e Projetos, Planos e Gerenciamento e outros correlatos-K3 | E48: - | F48: 0.12 | G48: - | I48: Título: | J48: =DADOS!B55 -> Engenheiro Civil | O48: Cargo: | P48: Prefeito Municipal
A49: =A48 -> Estudos e Projetos, Planos e Gerenciamento e outros correlatos | B49: BDI PAD | C49: Estudos e Projetos, Planos e Gerenciamento e outros correlatos-BDI PAD | E49: - | F49: - | G49: - | I49: =DADOS!A56 -> CREA/CAU: | J49: =DADOS!B56 -> 140.221-0
I50: =DADOS!A57 -> ART/RRT: | J50: =DADOS!B57 -> 0
A52: Construção e Reforma de Edifícios
A53: Construção de Praças Urbanas, Rodovias, Ferrovias e recapeamento e pavimentação de vias urbanas
A54: Construção de Redes de Abastecimento de Água, Coleta de Esgoto
A55: Construção e Manutenção de Estações e Redes de Distribuição de Energia Elétrica
A56: Obras Portuárias, Marítimas e Fluviais
A57: Fornecimento de Materiais e Equipamentos (aquisição indireta - em conjunto com licitação de obras)
A58: Fornecimento de Materiais e Equipamentos (aquisição direta)
A59: Estudos e Projetos, Planos e Gerenciamento e outros correlatos

Sheet PO
N1: PO - PLANILHA ORÇAMENTÁRIA | T1: Grau de Sigilo
B2: LOTE | C2: Meta | D2: Nível 2 | E2: Nível 3 | F2: Nível 4 | G2: Serviço | N2: =CHOOSE(1+LOG(1+2*(TipoOrçamento="BASE")+4*(TipoOrçamento="LICITADO")+8*(TipoOrçamento="REPROGRAMADOAC")+16*(TipoOrçamento="REPROGRAMADONPL"),2),"nada","Orçamento Base para Licitação","Orçamento Licitado","Orçamento Licitado Reprogramado","Orçamento Base para Licitação - Reprogramado") -> Orçamento Base para Licitação | T2: #PUBLICO | W2: Arredondamento
W3: Quantidade | X3: TRUE
A4: Nmax | U4: ERRO GERAL | W4: Custo Unitáro | X4: TRUE
A5: =MAX($A$12:$A$58) -> 3 | U5: =IF(COUNTIF($U$12:OFFSET($U$58,-1,0),"DESCRIÇÃO")+COUNTIF($U$12:OFFSET($U$58,-1,0),"UNIDADE")+COUNTIF($U$12:OFFSET($U$58,-1,0),"SEM VALOR")>0,"NÃO OK","OK") -> NÃO OK | W5: BDI | X5: TRUE
W6: Preço Unitário | X6: TRUE
W7: Preço Total | X7: TRUE
P9: =OFFSET(PLQ!$E$12,ROW($P9)-ROW(P$12),0) -> -
A10: Nível | B10: Altura | C10: n1 | D10: n2 | E10: n3 | F10: n4 | G10: n5 | H10: Czero | I10: Cnível | J10: Nível | K10: Item | L10: Fonte | M10: Código | N10: Descrição | O10: Unidade | P10: Quantidade | Q10: =IF(OR(TipoOrçamento="LICITADO",TipoOrçamento="REPROGRAMADOAC"),"Preço Unitário (R$)","Custo Unitário (R$)") -> Custo Unitário (R$) | R10: BDI (%) | S10: Preço Unitário (R$) | T10: Preço Total (R$) | U10: Erro de Dados | V10: Lista Crono | W10: Concatenação Fonte-Código | X10: BancoRef | Y10: =IF(TipoOrçamento="LICITADO","Preço Unitário Edital (R$)","Custo Unitário Referência (R$)") -> Custo Unitário Referência (R$) | Z10: =IF(TipoOrçamento="LICITADO","Valor BDI Edital","Valor BDI") -> Valor BDI
A11: =CHOOSE(1+LOG(1+2*(J11="Meta")+4*(J11="Nível 2")+8*(J11="Nível 3")+16*(J11="Nível 4")+32*(J11="Serviço"),2),0,1,2,3,4,"S") -> S | B11: =IF(OR(A11="S",A11=0),0,IF(ISERROR(I11),H11,SMALL(H11:I11,1))) -> 0 | C11: =IF($A11=1,OFFSET(C11,-1,0)+1,OFFSET(C11,-1,0)) -> n1 | D11: =IF($A11=1,0,IF($A11=2,OFFSET(D11,-1,0)+1,OFFSET(D11,-1,0))) -> n2 | E11: =IF(AND($A11<=2,$A11<>0),0,IF($A11=3,OFFSET(E11,-1,0)+1,OFFSET(E11,-1,0))) -> n3 | F11: =IF(AND($A11<=3,$A11<>0),0,IF($A11=4,OFFSET(F11,-1,0)+1,OFFSET(F11,-1,0))) -> n4 | G11: =IF(AND($A11<=4,$A11<>0),0,IF($A11="S",OFFSET(G11,-1,0)+1,OFFSET(G11,-1,0))) ->  | H11: =IF(OR($A11="S",$A11=0),0,MATCH(0,OFFSET($B11,1,$A11,ROW($A$58)-ROW($A11)),0)) -> 0 | I11: =IF(OR($A11="S",$A11=0),0,MATCH(OFFSET($B11,0,$A11)+1,OFFSET($B11,1,$A11,ROW($A$58)-ROW($A11)),0)) -> 0 | J11: Serviço | K11: =IF($A11=0,"-",CONCATENATE(C11&".",IF(AND($A$5>=2,$A11>=2),D11&".",""),IF(AND($A$5>=3,$A11>=3),E11&".",""),IF(AND($A$5>=4,$A11>=4),F11&".",""),IF($A11="S",G11&".",""))) ->  | N11: =IF($A11="S",Referencia.Descricao,"(digite a descrição aqui)") ->  | O11: =Referencia.Unidade ->  | R11: BDI 1 | S11: =IF($A11="S",IF($Q$10="Preço Unitário (R$)",PO.CustoUnitario,ROUND(PO.CustoUnitario*(1+$Z11),15-13*$X$6)),0) -> 0 | T11: =IF($A11="S",VTOTAL1,IF($A11=0,0,ROUND(SomaAgrup,15-13*$X$7))) -> 0 | U11: =IF($J11="","",IF($N11="","DESCRIÇÃO",IF(AND($J11="Serviço",$O11=""),"UNIDADE",IF($T11<=0,"SEM VALOR",IF(AND($Y11<>"",$Q11>$Y11),"ACIMA REF.",""))))) -> DESCRIÇÃO | V11: =IF(OR($A11=0,$A11="S",$A11>CFF!$A$9),"",MAX(V$12:OFFSET(V11,-1,0))+1) ->  | W11: =IF(AND($J11="Serviço",$M11<>""),IF($L11="",$M11,CONCATENATE($L11,"-",$M11))) -> FALSE | X11: =IF(AND(Fonte<>"",Código<>""),MATCH(Fonte&" "&IF(Fonte="sinapi",SUBSTITUTE(SUBSTITUTE(Código,"/00","/"),"/0","/"),Código),INDIRECT("'[Referência "&_xlnm.Database&".xls]Banco'!$a:$a"),0),"X") -> X | Y11: =IF(Import.Desoneracao="sim",Referencia.Desonerado,Referencia.NaoDesonerado) -> 0 | Z11: =ROUND(IF(ISNUMBER(R11),R11,IF(LEFT(R11,3)="BDI",HLOOKUP(R11,DADOS!$T$37:$X$38,2,FALSE),0)),15-11*$X$5) -> 0.22
A12: 0 | B12: =COUNTA(OFFSET(B12,1,0):B$58) -> 45 | J12: =IF(OR(TipoOrçamento="LICITADO",TipoOrçamento="REPROGRAMADOAC"),"CTEF","LOTE") -> LOTE | K12: 0 | N12: =IF(TipoOrçamento="LICITADO",DADOS!O43,DADOS!G38) -> 0 | T12: =SUMIF(OFFSET($J12,1,0,ROW(T58)-ROW(T12)-1),"Serviço",OFFSET(T12,1,0,ROW(T58)-ROW(T12)-1)) -> 489719.26 | U12: =IF($N12=0,"DESCRIÇÃO","") -> DESCRIÇÃO | V12: 0
A13: =CHOOSE(1+LOG(1+2*(J13="Meta")+4*(J13="Nível 2")+8*(J13="Nível 3")+16*(J13="Nível 4")+32*(J13="Serviço"),2),0,1,2,3,4,"S") -> 1 | B13: =IF(OR(A13="S",A13=0),0,IF(ISERROR(I13),H13,SMALL(H13:I13,1))) -> 45 | C13: =IF($A13=1,OFFSET(C13,-1,0)+1,OFFSET(C13,-1,0)) -> 1 | D13: =IF($A13=1,0,IF($A13=2,OFFSET(D13,-1,0)+1,OFFSET(D13,-1,0))) -> 0 | E13: =IF(AND($A13<=2,$A13<>0),0,IF($A13=3,OFFSET(E13,-1,0)+1,OFFSET(E13,-1,0))) -> 0 | F13: =IF(AND($A13<=3,$A13<>0),0,IF($A13=4,OFFSET(F13,-1,0)+1,OFFSET(F13,-1,0))) -> 0 | G13: =IF(AND($A13<=4,$A13<>0),0,IF($A13="S",OFFSET(G13,-1,0)+1,OFFSET(G13,-1,0))) -> 0 | H13: =IF(OR($A13="S",$A13=0),0,MATCH(0,OFFSET($B13,1,$A13,ROW($A$58)-ROW($A13)),0)) -> 45 | I13: =IF(OR($A13="S",$A13=0),0,MATCH(OFFSET($B13,0,$A13)+1,OFFSET($B13,1,$A13,ROW($A$58)-ROW($A13)),0)) ->  | J13: Meta | K13: =IF($A13=0,"-",CONCATENATE(C13&".",IF(AND($A$5>=2,$A13>=2),D13&".",""),IF(AND($A$5>=3,$A13>=3),E13&".",""),IF(AND($A$5>=4,$A13>=4),F13&".",""),IF($A13="S",G13&".",""))) -> 1. | N13: PAVIMENTAÇÃO ASFÁLTICA | P13: 0 | R13: BDI 1 | S13: =IF($A13="S",IF($Q$10="Preço Unitário (R$)",PO.CustoUnitario,ROUND(PO.CustoUnitario*(1+$Z13),15-13*$X$6)),0) -> 0 | T13: =IF($A13="S",VTOTAL1,IF($A13=0,0,ROUND(SomaAgrup,15-13*$X$7))) -> 489719.26 | U13: =IF($J13="","",IF($N13="","DESCRIÇÃO",IF(AND($J13="Serviço",$O13=""),"UNIDADE",IF($T13<=0,"SEM VALOR",IF(AND($Y13<>"",$Q13>$Y13),"ACIMA REF.",""))))) ->  | V13: =IF(OR($A13=0,$A13="S",$A13>CFF!$A$9),"",MAX(V$12:OFFSET(V13,-1,0))+1) -> 1 | W13: =IF(AND($J13="Serviço",$M13<>""),IF($L13="",$M13,CONCATENATE($L13,"-",$M13))) -> FALSE | X13: =IF(AND(Fonte<>"",Código<>""),MATCH(Fonte&" "&IF(Fonte="sinapi",SUBSTITUTE(SUBSTITUTE(Código,"/00","/"),"/0","/"),Código),INDIRECT("'[Referência "&_xlnm.Database&".xls]Banco'!$a:$a"),0),"X") -> X | Y13: =IF(Import.Desoneracao="sim",Referencia.Desonerado,Referencia.NaoDesonerado) -> 0 | Z13: =ROUND(IF(ISNUMBER(R13),R13,IF(LEFT(R13,3)="BDI",HLOOKUP(R13,DADOS!$T$37:$X$38,2,FALSE),0)),15-11*$X$5) -> 0.22
A14: 2 | B14: 44 | C14: 1 | D14: 1 | E14: 0 | F14: 0 | G14: 0 | H14: 44 | J14: Nível 2 | K14: 1.1. | N14: RUAS FELIPE ARSÊNIO BAMBERG E AMELDA TEREZA BIEGER | P14: 0 | R14: BDI 1 | S14: 0 | T14: 489719.26 | V14: =IF(OR($A14=0,$A14="S",$A14>CFF!$A$9),"",MAX(V$12:OFFSET(V14,-1,0))+1) -> 2 | W14: FALSE | X14: X | Y14: 0 | Z14: =ROUND(IF(ISNUMBER(R14),R14,IF(LEFT(R14,3)="BDI",HLOOKUP(R14,DADOS!$T$37:$X$38,2,FALSE),0)),15-11*$X$5) -> 0.22
A15: 3 | B15: 5 | C15: 1 | D15: 1 | E15: 1 | F15: 0 | G15: 0 | H15: 43 | I15: 5 | J15: Nível 3 | K15: 1.1.1. | N15: SERVIÇOS PRELIMINARES | P15: 0 | R15: BDI 1 | S15: 0 | T15: 5913.39 | V15: =IF(OR($A15=0,$A15="S",$A15>CFF!$A$9),"",MAX(V$12:OFFSET(V15,-1,0))+1) -> 3 | W15: FALSE | X15: X | Y15: 0 | Z15: =ROUND(IF(ISNUMBER(R15),R15,IF(LEFT(R15,3)="BDI",HLOOKUP(R15,DADOS!$T$37:$X$38,2,FALSE),0)),15-11*$X$5) -> 0.22
A16: S | B16: 0 | C16: 1 | D16: 1 | E16: 1 | F16: 0 | G16: 1 | H16: 0 | I16: 0 | J16: Serviço | K16: 1.1.1.1. | L16: SINAPI-I | M16: 4813 | N16: Placa de obra (construção civil) em chapa de aço galvanizado, nº22, adesivada. | O16: m² | P16: 4.5 | Q16: 225 | R16: BDI 1 | S16: 274.5 | T16: 1235.25 | U16: ACIMA REF. | V16: =IF(OR($A16=0,$A16="S",$A16>CFF!$A$9),"",MAX(V$12:OFFSET(V16,-1,0))+1) ->  | W16: SINAPI-I-4813 | Y16: 0 | Z16: =ROUND(IF(ISNUMBER(R16),R16,IF(LEFT(R16,3)="BDI",HLOOKUP(R16,DADOS!$T$37:$X$38,2,FALSE),0)),15-11*$X$5) -> 0.22
A17: S | B17: 0 | C17: 1 | D17: 1 | E17: 1 | F17: 0 | G17: 2 | H17: 0 | I17: 0 | J17: Serviço | K17: 1.1.1.2. | L17: SINAPI-I | M17: 4083 | N17: Encarregado geral de obra | O17: h | P17: 60 | Q17: 31.11 | R17: BDI 1 | S17: 37.95 | T17: 2277 | U17: ACIMA REF. | V17: =IF(OR($A17=0,$A17="S",$A17>CFF!$A$9),"",MAX(V$12:OFFSET(V17,-1,0))+1) ->  | W17: SINAPI-I -4083 | Y17: 0 | Z17: =ROUND(IF(ISNUMBER(R17),R17,IF(LEFT(R17,3)="BDI",HLOOKUP(R17,DADOS!$T$37:$X$38,2,FALSE),0)),15-11*$X$5) -> 0.22
A18: =CHOOSE(1+LOG(1+2*(J18="Meta")+4*(J18="Nível 2")+8*(J18="Nível 3")+16*(J18="Nível 4")+32*(J18="Serviço"),2),0,1,2,3,4,"S") -> S | B18: =IF(OR(A18="S",A18=0),0,IF(ISERROR(I18),H18,SMALL(H18:I18,1))) -> 0 | C18: =IF($A18=1,OFFSET(C18,-1,0)+1,OFFSET(C18,-1,0)) -> 1 | D18: =IF($A18=1,0,IF($A18=2,OFFSET(D18,-1,0)+1,OFFSET(D18,-1,0))) -> 1 | E18: =IF(AND($A18<=2,$A18<>0),0,IF($A18=3,OFFSET(E18,-1,0)+1,OFFSET(E18,-1,0))) -> 1 | F18: =IF(AND($A18<=3,$A18<>0),0,IF($A18=4,OFFSET(F18,-1,0)+1,OFFSET(F18,-1,0))) -> 0 | G18: =IF(AND($A18<=4,$A18<>0),0,IF($A18="S",OFFSET(G18,-1,0)+1,OFFSET(G18,-1,0))) -> 3 | H18: 0 | I18: 0 | J18: Serviço | K18: =IF($A18=0,"-",CONCATENATE(C18&".",IF(AND($A$5>=2,$A18>=2),D18&".",""),IF(AND($A$5>=3,$A18>=3),E18&".",""),IF(AND($A$5>=4,$A18>=4),F18&".",""),IF($A18="S",G18&".",""))) -> 1.1.1.3. | L18: SINAPI-I | M18: 2706 | N18: Engenheiro civil | O18: h | P18: 15 | Q18: 95 | R18: BDI 1 | S18: =IF($A18="S",IF($Q$10="Preço Unitário (R$)",PO.CustoUnitario,ROUND(PO.CustoUnitario*(1+$Z18),15-13*$X$6)),0) -> 115.9 | T18: =IF($A18="S",VTOTAL1,IF($A18=0,0,ROUND(SomaAgrup,15-13*$X$7))) -> 1738.5 | U18: =IF($J18="","",IF($N18="","DESCRIÇÃO",IF(AND($J18="Serviço",$O18=""),"UNIDADE",IF($T18<=0,"SEM VALOR",IF(AND($Y18<>"",$Q18>$Y18),"ACIMA REF.",""))))) -> ACIMA REF. | V18: =IF(OR($A18=0,$A18="S",$A18>CFF!$A$9),"",MAX(V$12:OFFSET(V18,-1,0))+1) ->  | W18: =IF(AND($J18="Serviço",$M18<>""),IF($L18="",$M18,CONCATENATE($L18,"-",$M18))) -> SINAPI-I-2706 | X18: =IF(AND(Fonte<>"",Código<>""),MATCH(Fonte&" "&IF(Fonte="sinapi",SUBSTITUTE(SUBSTITUTE(Código,"/00","/"),"/0","/"),Código),INDIRECT("'[Referência "&_xlnm.Database&".xls]Banco'!$a:$a"),0),"X") ->  | Y18: =IF(Import.Desoneracao="sim",Referencia.Desonerado,Referencia.NaoDesonerado) -> 0 | Z18: =ROUND(IF(ISNUMBER(R18),R18,IF(LEFT(R18,3)="BDI",HLOOKUP(R18,DADOS!$T$37:$X$38,2,FALSE),0)),15-11*$X$5) -> 0.22
A19: S | B19: 0 | C19: 1 | D19: 1 | E19: 1 | F19: 0 | G19: 4 | H19: 0 | I19: 0 | J19: Serviço | K19: 1.1.1.4. | L19: SINAPI-I | M19: 7592 | N19: Topográfo para a marcação planialtimetrica da pavimentação | O19: h | P19: 24 | Q19: 22.63 | R19: BDI 1 | S19: 27.61 | T19: 662.64 | U19: ACIMA REF. | V19: =IF(OR($A19=0,$A19="S",$A19>CFF!$A$9),"",MAX(V$12:OFFSET(V19,-1,0))+1) ->  | W19: SINAPI-I-7592 | Y19: 0 | Z19: =ROUND(IF(ISNUMBER(R19),R19,IF(LEFT(R19,3)="BDI",HLOOKUP(R19,DADOS!$T$37:$X$38,2,FALSE),0)),15-11*$X$5) -> 0.22
A20: 3 | B20: 7 | C20: 1 | D20: 1 | E20: 2 | F20: 0 | G20: 0 | H20: 38 | I20: 7 | J20: Nível 3 | K20: 1.1.2. | N20: DRENAGEM E RECOMPOSIÇÃO DE PAVIMENTO | P20: 0 | R20: BDI 1 | S20: 0 | T20: 83441.95 | V20: =IF(OR($A20=0,$A20="S",$A20>CFF!$A$9),"",MAX(V$12:OFFSET(V20,-1,0))+1) -> 4 | W20: FALSE | X20: X | Y20: 0 | Z20: =ROUND(IF(ISNUMBER(R20),R20,IF(LEFT(R20,3)="BDI",HLOOKUP(R20,DADOS!$T$37:$X$38,2,FALSE),0)),15-11*$X$5) -> 0.22
A21: S | B21: 0 | C21: 1 | D21: 1 | E21: 2 | F21: 0 | G21: 1 | H21: 0 | I21: 0 | J21: Serviço | K21: 1.1.2.1. | L21: SINAPI | M21: 90091 | N21: Escavação mecanizada de vala com profundidade até 1,5m, escavadeira hidraulica (0,8 m³), largura de 1,5 m até 2,5 m, locais cm baixo nivel de interferência. AF_02/2021 | O21: m³ | P21: 299.2 | Q21: 2.45 | R21: BDI 1 | S21: 2.99 | T21: 894.61 | U21: ACIMA REF. | V21: =IF(OR($A21=0,$A21="S",$A21>CFF!$A$9),"",MAX(V$12:OFFSET(V21,-1,0))+1) ->  | W21: SINAPI-90091 | Y21: 0 | Z21: =ROUND(IF(ISNUMBER(R21),R21,IF(LEFT(R21,3)="BDI",HLOOKUP(R21,DADOS!$T$37:$X$38,2,FALSE),0)),15-11*$X$5) -> 0.22
A22: S | B22: 0 | C22: 1 | D22: 1 | E22: 2 | F22: 0 | G22: 2 | H22: 0 | I22: 0 | J22: Serviço | K22: 1.1.2.2. | L22: SINAPI | M22: 102354 | N22: Desmonte de material de 3ª categoria (blocos de rochas ou matações) com martelete pneumatico hidráulico. Exclusive carga e transporte. AF_03/2021 | O22: m³ | P22: 25 | Q22: 134.45 | R22: BDI 1 | S22: 164.03 | T22: 4100.75 | U22: ACIMA REF. | V22: =IF(OR($A22=0,$A22="S",$A22>CFF!$A$9),"",MAX(V$12:OFFSET(V22,-1,0))+1) ->  | W22: SINAPI-102354 | Y22: 0 | Z22: =ROUND(IF(ISNUMBER(R22),R22,IF(LEFT(R22,3)="BDI",HLOOKUP(R22,DADOS!$T$37:$X$38,2,FALSE),0)),15-11*$X$5) -> 0.22
A23: S | B23: 0 | C23: 1 | D23: 1 | E23: 2 | F23: 0 | G23: 3 | H23: 0 | I23: 0 | J23: Serviço | K23: 1.1.2.3. | L23: SINAPI-I | M23: 92210 | N23: Tubo de concreto para redes coletoras de águas pluviais, diâmetro de 400 mm, junta rigida, instalado em local de com baixo nivel de interferência - fornecimento e assentamento. AF_12/2015 | O23: m | P23: 38 | Q23: 124.45 | R23: BDI 1 | S23: 151.83 | T23: 5769.54 | U23: ACIMA REF. | V23: =IF(OR($A23=0,$A23="S",$A23>CFF!$A$9),"",MAX(V$12:OFFSET(V23,-1,0))+1) ->  | W23: SINAPI-I-92210 | Y23: 0 | Z23: =ROUND(IF(ISNUMBER(R23),R23,IF(LEFT(R23,3)="BDI",HLOOKUP(R23,DADOS!$T$37:$X$38,2,FALSE),0)),15-11*$X$5) -> 0.22
A24: S | B24: 0 | C24: 1 | D24: 1 | E24: 2 | F24: 0 | G24: 4 | H24: 0 | I24: 0 | J24: Serviço | K24: 1.1.2.4. | L24: SINAPI-I | M24: 92212 | N24: Tubo de concreto para redes coletoras de águas pluviais, diâmetro de 600 mm, junta rígida, instalado em loacal com baixo nivel de interferência - fornecimento e assentamento. AF_12/2015 | O24: m | P24: 219 | Q24: 217.28 | R24: BDI 1 | S24: 265.08 | T24: 58052.52 | U24: ACIMA REF. | V24: =IF(OR($A24=0,$A24="S",$A24>CFF!$A$9),"",MAX(V$12:OFFSET(V24,-1,0))+1) ->  | W24: SINAPI-I-92212 | Y24: 0 | Z24: =ROUND(IF(ISNUMBER(R24),R24,IF(LEFT(R24,3)="BDI",HLOOKUP(R24,DADOS!$T$37:$X$38,2,FALSE),0)),15-11*$X$5) -> 0.22
A25: S | B25: 0 | C25: 1 | D25: 1 | E25: 2 | F25: 0 | G25: 5 | H25: 0 | I25: 0 | J25: Serviço | K25: 1.1.2.5. | L25: SINAPI | M25: 97933 | N25: Caixa com grelha para boca de lobo simples retangular, em concreto pré moldado, dimensões 0,6x1,0x1,0 m. AF_12/2020 | O25: Unidade | P25: 16 | Q25: 688.29 | R25: BDI 1 | S25: 839.71 | T25: 13435.36 | U25: ACIMA REF. | V25: =IF(OR($A25=0,$A25="S",$A25>CFF!$A$9),"",MAX(V$12:OFFSET(V25,-1,0))+1) ->  | W25: SINAPI-97933 | Y25: 0 | Z25: =ROUND(IF(ISNUMBER(R25),R25,IF(LEFT(R25,3)="BDI",HLOOKUP(R25,DADOS!$T$37:$X$38,2,FALSE),0)),15-11*$X$5) -> 0.22
A26: S | B26: 0 | C26: 1 | D26: 1 | E26: 2 | F26: 0 | G26: 6 | H26: 0 | I26: 0 | J26: Serviço | K26: 1.1.2.6. | L26: SINAPI | M26: 93373 | N26: Reaterro e compactação de vala. | O26: m³ | P26: 118.68 | Q26: 8.21 | R26: BDI 1 | S26: 10.02 | T26: 1189.17 | U26: ACIMA REF. | V26: =IF(OR($A26=0,$A26="S",$A26>CFF!$A$9),"",MAX(V$12:OFFSET(V26,-1,0))+1) ->  | W26: SINAPI-93373 | Y26: 0 | Z26: =ROUND(IF(ISNUMBER(R26),R26,IF(LEFT(R26,3)="BDI",HLOOKUP(R26,DADOS!$T$37:$X$38,2,FALSE),0)),15-11*$X$5) -> 0.22
A27: 3 | B27: 2 | C27: 1 | D27: 1 | E27: 3 | F27: 0 | G27: 0 | H27: 31 | I27: 2 | J27: Nível 3 | K27: 1.1.3. | N27: MEIOS - FIOS | R27: BDI 1 | S27: 0 | T27: 24165.81 | V27: =IF(OR($A27=0,$A27="S",$A27>CFF!$A$9),"",MAX(V$12:OFFSET(V27,-1,0))+1) -> 5 | W27: FALSE | X27: X | Y27: 0 | Z27: =ROUND(IF(ISNUMBER(R27),R27,IF(LEFT(R27,3)="BDI",HLOOKUP(R27,DADOS!$T$37:$X$38,2,FALSE),0)),15-11*$X$5) -> 0.22
A28: =CHOOSE(1+LOG(1+2*(J28="Meta")+4*(J28="Nível 2")+8*(J28="Nível 3")+16*(J28="Nível 4")+32*(J28="Serviço"),2),0,1,2,3,4,"S") -> S | B28: =IF(OR(A28="S",A28=0),0,IF(ISERROR(I28),H28,SMALL(H28:I28,1))) -> 0 | C28: 1 | D28: 1 | E28: 3 | F28: 0 | G28: 1 | H28: 0 | I28: 0 | J28: Serviço | K28: =IF($A28=0,"-",CONCATENATE(C28&".",IF(AND($A$5>=2,$A28>=2),D28&".",""),IF(AND($A$5>=3,$A28>=3),E28&".",""),IF(AND($A$5>=4,$A28>=4),F28&".",""),IF($A28="S",G28&".",""))) -> 1.1.3.1. | L28: SINAPI | M28: 94273 | N28: Assentamento de guia (meio-fio) em trecho reto, confecionada em concreto pré fabricado, dimensões (100X15X13X30) cm, (comprimento X base inferior X base superior X altura), para vias urbanas. (uso viário). AF_06/2016 | O28: m | P28: 417.66 | Q28: 47.43 | R28: BDI 1 | S28: 57.86 | T28: 24165.81 | U28: ACIMA REF. | V28: =IF(OR($A28=0,$A28="S",$A28>CFF!$A$9),"",MAX(V$12:OFFSET(V28,-1,0))+1) ->  | W28: SINAPI-94273 | Y28: 0 | Z28: =ROUND(IF(ISNUMBER(R28),R28,IF(LEFT(R28,3)="BDI",HLOOKUP(R28,DADOS!$T$37:$X$38,2,FALSE),0)),15-11*$X$5) -> 0.22
A29: 3 | B29: 10 | C29: 1 | D29: 1 | E29: 4 | F29: 0 | G29: 0 | H29: 29 | I29: 10 | J29: Nível 3 | K29: 1.1.4. | N29: PAVIMENTAÇÃO ASFÁLTICA SOBRE LEITO NATURAL | R29: BDI 1 | S29: 0 | T29: 295268.96 | V29: =IF(OR($A29=0,$A29="S",$A29>CFF!$A$9),"",MAX(V$12:OFFSET(V29,-1,0))+1) -> 6 | W29: FALSE | X29: X | Y29: 0 | Z29: =ROUND(IF(ISNUMBER(R29),R29,IF(LEFT(R29,3)="BDI",HLOOKUP(R29,DADOS!$T$37:$X$38,2,FALSE),0)),15-11*$X$5) -> 0.22
A30: S | B30: 0 | C30: 1 | D30: 1 | E30: 4 | F30: 0 | G30: 1 | H30: 0 | I30: 0 | J30: Serviço | K30: 1.1.4.1. | L30: SINAPI | M30: 101116 | N30: Escavação horizontal em solo de 1ª categoria com trator de esteiras (170 hp/lamina: 5,20 m³). AF_07/202 | O30: m³ | P30: 664.52 | Q30: 2.07 | R30: BDI 1 | S30: 2.53 | T30: 1681.24 | U30: ACIMA REF. | V30: =IF(OR($A30=0,$A30="S",$A30>CFF!$A$9),"",MAX(V$12:OFFSET(V30,-1,0))+1) ->  | W30: SINAPI-101116 | Y30: 0 | Z30: =ROUND(IF(ISNUMBER(R30),R30,IF(LEFT(R30,3)="BDI",HLOOKUP(R30,DADOS!$T$37:$X$38,2,FALSE),0)),15-11*$X$5) -> 0.22
A31: S | B31: 0 | C31: 1 | D31: 1 | E31: 4 | F31: 0 | G31: 2 | H31: 0 | I31: 0 | J31: Serviço | K31: 1.1.4.2. | L31: SINAPI | M31: 96385 | N31: Execução e compactação de aterro com solo predominantemente argiloso - exclusive escavação, carga e trasnporte e solo AF_09/2017 | O31: m³ | P31: 127.5 | Q31: 9.33 | R31: BDI 1 | S31: 11.38 | T31: 1450.95 | U31: ACIMA REF. | V31: =IF(OR($A31=0,$A31="S",$A31>CFF!$A$9),"",MAX(V$12:OFFSET(V31,-1,0))+1) ->  | W31: SINAPI-96385 | Y31: 0 | Z31: =ROUND(IF(ISNUMBER(R31),R31,IF(LEFT(R31,3)="BDI",HLOOKUP(R31,DADOS!$T$37:$X$38,2,FALSE),0)),15-11*$X$5) -> 0.22
A32: S | B32: 0 | C32: 1 | D32: 1 | E32: 4 | F32: 0 | G32: 3 | H32: 0 | I32: 0 | J32: Serviço | K32: 1.1.4.3. | L32: SINAPI | M32: 100576 | N32: Regularização e compactação do subleito de solo predominantemente argiloso. AF_11/2019 | O32: m² | P32: 1898.65 | Q32: 2 | R32: BDI 1 | S32: 2.44 | T32: 4632.71 | U32: ACIMA REF. | V32: =IF(OR($A32=0,$A32="S",$A32>CFF!$A$9),"",MAX(V$12:OFFSET(V32,-1,0))+1) ->  | W32: SINAPI-100576 | Y32: 0 | Z32: =ROUND(IF(ISNUMBER(R32),R32,IF(LEFT(R32,3)="BDI",HLOOKUP(R32,DADOS!$T$37:$X$38,2,FALSE),0)),15-11*$X$5) -> 0.22
A33: S | B33: 0 | C33: 1 | D33: 1 | E33: 4 | F33: 0 | G33: 4 | H33: 0 | I33: 0 | J33: Serviço | K33: 1.1.4.4. | L33: SINAPI | M33: 96400 | N33: Execução e Compactação de base ou sub base em macadame - exclusive escavação, carga e transporte - AF_09/2017 - espessura 18cm | O33: m³ | P33: 341.75 | Q33: 125.52 | R33: BDI 1 | S33: 153.13 | T33: 52332.18 | U33: ACIMA REF. | V33: =IF(OR($A33=0,$A33="S",$A33>CFF!$A$9),"",MAX(V$12:OFFSET(V33,-1,0))+1) ->  | W33: SINAPI-96400 | Y33: 0 | Z33: =ROUND(IF(ISNUMBER(R33),R33,IF(LEFT(R33,3)="BDI",HLOOKUP(R33,DADOS!$T$37:$X$38,2,FALSE),0)),15-11*$X$5) -> 0.22
A34: S | B34: 0 | C34: 1 | D34: 1 | E34: 4 | F34: 0 | G34: 5 | H34: 0 | I34: 0 | J34: Serviço | K34: 1.1.4.5. | L34: SINAPI | M34: 96396 | N34: Execução e Compactação de base e ou sub base com com brita graduada simples (BGS) - exclusive carga e transporte AF_09/2017- espessura 12 cm | O34: m³ | P34: 227.84 | Q34: 140.51 | R34: BDI 1 | S34: 171.42 | T34: 39056.33 | U34: ACIMA REF. | V34: =IF(OR($A34=0,$A34="S",$A34>CFF!$A$9),"",MAX(V$12:OFFSET(V34,-1,0))+1) ->  | W34: SINAPI-96396 | Y34: 0 | Z34: =ROUND(IF(ISNUMBER(R34),R34,IF(LEFT(R34,3)="BDI",HLOOKUP(R34,DADOS!$T$37:$X$38,2,FALSE),0)),15-11*$X$5) -> 0.22
A35: S | B35: 0 | C35: 1 | D35: 1 | E35: 4 | F35: 0 | G35: 6 | H35: 0 | I35: 0 | J35: Serviço | K35: 1.1.4.6. | L35: Orç | M35: AEI | N35: Imprimação de base de pavimentação com com asfalto diluido imprimação. Taxa de aplicação de 1,2 L/m². | O35: m² | P35: 1898.65 | Q35: 9.56 | R35: BDI 1 | S35: 11.66 | T35: 22138.26 | U35: ACIMA REF. | V35: =IF(OR($A35=0,$A35="S",$A35>CFF!$A$9),"",MAX(V$12:OFFSET(V35,-1,0))+1) ->  | W35: Orç-AEI | Y35: 0 | Z35: =ROUND(IF(ISNUMBER(R35),R35,IF(LEFT(R35,3)="BDI",HLOOKUP(R35,DADOS!$T$37:$X$38,2,FALSE),0)),15-11*$X$5) -> 0.22
A36: S | B36: 0 | C36: 1 | D36: 1 | E36: 4 | F36: 0 | G36: 7 | H36: 0 | I36: 0 | J36: Serviço | K36: 1.1.4.7. | L36: SINAPI | M36: 96402 | N36: Pintura de Ligação com emulsão RR-2C taxa de 0,60 L/m² | O36: m² | P36: 1898.65 | Q36: 2.74 | R36: BDI 1 | S36: 3.34 | T36: 6341.49 | U36: ACIMA REF. | V36: =IF(OR($A36=0,$A36="S",$A36>CFF!$A$9),"",MAX(V$12:OFFSET(V36,-1,0))+1) ->  | W36: SINAPI -96402 | Y36: 0 | Z36: =ROUND(IF(ISNUMBER(R36),R36,IF(LEFT(R36,3)="BDI",HLOOKUP(R36,DADOS!$T$37:$X$38,2,FALSE),0)),15-11*$X$5) -> 0.22
A37: S | B37: 0 | C37: 1 | D37: 1 | E37: 4 | F37: 0 | G37: 8 | H37: 0 | I37: 0 | J37: Serviço | K37: 1.1.4.8. | L37: SINAPI | M37: 95995 | N37: Construção de pavimento com aplicação de CBUQ, camada de rolamento, com espessura 5 cm, exclusive transporte. AF_03/2017 | O37: m³ | P37: 94.94 | Q37: 1257.34 | R37: BDI 1 | S37: 1533.95 | T37: 145633.21 | U37: ACIMA REF. | V37: =IF(OR($A37=0,$A37="S",$A37>CFF!$A$9),"",MAX(V$12:OFFSET(V37,-1,0))+1) ->  | W37: SINAPI-95995 | Y37: 0 | Z37: =ROUND(IF(ISNUMBER(R37),R37,IF(LEFT(R37,3)="BDI",HLOOKUP(R37,DADOS!$T$37:$X$38,2,FALSE),0)),15-11*$X$5) -> 0.22
A38: S | B38: 0 | C38: 1 | D38: 1 | E38: 4 | F38: 0 | G38: 9 | H38: 0 | I38: 0 | J38: Serviço | K38: 1.1.4.9. | L38: SINAPI | M38: 95427 | N38: Transporte comercial com caminhão basculante 18 m³, via pavimentada DMT acima de 30Km (unidade:m³xKm). AF_09/2016 DMT=43km | O38: m³xKm | P38: 28574.79 | Q38: 0.63 | R38: BDI 1 | S38: 0.77 | T38: 22002.59 | U38: ACIMA REF. | V38: =IF(OR($A38=0,$A38="S",$A38>CFF!$A$9),"",MAX(V$12:OFFSET(V38,-1,0))+1) ->  | W38: SINAPI-95427 | Y38: 0 | Z38: =ROUND(IF(ISNUMBER(R38),R38,IF(LEFT(R38,3)="BDI",HLOOKUP(R38,DADOS!$T$37:$X$38,2,FALSE),0)),15-11*$X$5) -> 0.22
A39: 3 | B39: 7 | C39: 1 | D39: 1 | E39: 5 | F39: 0 | G39: 0 | H39: 19 | I39: 7 | J39: Nível 3 | K39: 1.1.5. | N39: PASSEIOS | R39: BDI 1 | S39: 0 | T39: 55455.65 | V39: =IF(OR($A39=0,$A39="S",$A39>CFF!$A$9),"",MAX(V$12:OFFSET(V39,-1,0))+1) -> 7 | W39: FALSE | X39: X | Y39: 0 | Z39: =ROUND(IF(ISNUMBER(R39),R39,IF(LEFT(R39,3)="BDI",HLOOKUP(R39,DADOS!$T$37:$X$38,2,FALSE),0)),15-11*$X$5) -> 0.22
A40: S | B40: 0 | C40: 1 | D40: 1 | E40: 5 | F40: 0 | G40: 1 | H40: 0 | I40: 0 | J40: Serviço | K40: 1.1.5.1. | L40: SINAPI | M40: 100576 | N40: Regularização e compactação da base | O40: m² | P40: 843.32 | Q40: 2 | R40: BDI 1 | S40: 2.44 | T40: 2057.7 | U40: ACIMA REF. | V40: =IF(OR($A40=0,$A40="S",$A40>CFF!$A$9),"",MAX(V$12:OFFSET(V40,-1,0))+1) ->  | W40: SINAPI-100576 | Y40: 0 | Z40: =ROUND(IF(ISNUMBER(R40),R40,IF(LEFT(R40,3)="BDI",HLOOKUP(R40,DADOS!$T$37:$X$38,2,FALSE),0)),15-11*$X$5) -> 0.22
A41: S | B41: 0 | C41: 1 | D41: 1 | E41: 5 | F41: 0 | G41: 2 | H41: 0 | I41: 0 | J41: Serviço | K41: 1.1.5.2. | L41: SINAPI-I | M41: 4718 | N41: Lastro de brita - espessura 3 cm | O41: m³ | P41: 25.29 | Q41: 82 | R41: BDI 1 | S41: 100.04 | T41: 2530.01 | U41: ACIMA REF. | V41: =IF(OR($A41=0,$A41="S",$A41>CFF!$A$9),"",MAX(V$12:OFFSET(V41,-1,0))+1) ->  | W41: SINAPI-I-4718 | Y41: 0 | Z41: =ROUND(IF(ISNUMBER(R41),R41,IF(LEFT(R41,3)="BDI",HLOOKUP(R41,DADOS!$T$37:$X$38,2,FALSE),0)),15-11*$X$5) -> 0.22
A42: S | B42: 0 | C42: 1 | D42: 1 | E42: 5 | F42: 0 | G42: 3 | H42: 0 | I42: 0 | J42: Serviço | K42: 1.1.5.3. | L42: SINAPI | M42: 94991 | N42: Execução de passeios (calçada) ou piso de concreto moldado in loco, espessura 6 cm, usinado, acabamento convencional, não armado. AF_07/2016 | O42: m³ | P42: 44.11 | Q42: 633.54 | R42: BDI 1 | S42: 772.92 | T42: 34093.5 | U42: ACIMA REF. | V42: =IF(OR($A42=0,$A42="S",$A42>CFF!$A$9),"",MAX(V$12:OFFSET(V42,-1,0))+1) ->  | W42: SINAPI-94991 | Y42: 0 | Z42: =ROUND(IF(ISNUMBER(R42),R42,IF(LEFT(R42,3)="BDI",HLOOKUP(R42,DADOS!$T$37:$X$38,2,FALSE),0)),15-11*$X$5) -> 0.22
A43: =CHOOSE(1+LOG(1+2*(J43="Meta")+4*(J43="Nível 2")+8*(J43="Nível 3")+16*(J43="Nível 4")+32*(J43="Serviço"),2),0,1,2,3,4,"S") -> S | B43: =IF(OR(A43="S",A43=0),0,IF(ISERROR(I43),H43,SMALL(H43:I43,1))) -> 0 | C43: =IF($A43=1,OFFSET(C43,-1,0)+1,OFFSET(C43,-1,0)) -> 1 | D43: =IF($A43=1,0,IF($A43=2,OFFSET(D43,-1,0)+1,OFFSET(D43,-1,0))) -> 1 | E43: =IF(AND($A43<=2,$A43<>0),0,IF($A43=3,OFFSET(E43,-1,0)+1,OFFSET(E43,-1,0))) -> 5 | F43: =IF(AND($A43<=3,$A43<>0),0,IF($A43=4,OFFSET(F43,-1,0)+1,OFFSET(F43,-1,0))) -> 0 | G43: =IF(AND($A43<=4,$A43<>0),0,IF($A43="S",OFFSET(G43,-1,0)+1,OFFSET(G43,-1,0))) -> 4 | H43: 0 | I43: 0 | J43: Serviço | K43: =IF($A43=0,"-",CONCATENATE(C43&".",IF(AND($A$5>=2,$A43>=2),D43&".",""),IF(AND($A$5>=3,$A43>=3),E43&".",""),IF(AND($A$5>=4,$A43>=4),F43&".",""),IF($A43="S",G43&".",""))) -> 1.1.5.4. | L43: SINAPI | M43: 94993 | N43: Execução de passeios (calçada) ou piso de concreto moldado in loco, espessura 6 cm, usinado, acabamento convencional, armado. AF_07/2016 | O43: m² | P43: 108 | Q43: 91.91 | R43: BDI 1 | S43: =IF($A43="S",IF($Q$10="Preço Unitário (R$)",PO.CustoUnitario,ROUND(PO.CustoUnitario*(1+$Z43),15-13*$X$6)),0) -> 112.13 | T43: =IF($A43="S",VTOTAL1,IF($A43=0,0,ROUND(SomaAgrup,15-13*$X$7))) -> 12110.04 | U43: =IF($J43="","",IF($N43="","DESCRIÇÃO",IF(AND($J43="Serviço",$O43=""),"UNIDADE",IF($T43<=0,"SEM VALOR",IF(AND($Y43<>"",$Q43>$Y43),"ACIMA REF.",""))))) -> ACIMA REF. | V43: =IF(OR($A43=0,$A43="S",$A43>CFF!$A$9),"",MAX(V$12:OFFSET(V43,-1,0))+1) ->  | W43: =IF(AND($J43="Serviço",$M43<>""),IF($L43="",$M43,CONCATENATE($L43,"-",$M43))) -> SINAPI-94993 | X43: =IF(AND(Fonte<>"",Código<>""),MATCH(Fonte&" "&IF(Fonte="sinapi",SUBSTITUTE(SUBSTITUTE(Código,"/00","/"),"/0","/"),Código),INDIRECT("'[Referência "&_xlnm.Database&".xls]Banco'!$a:$a"),0),"X") ->  | Y43: =IF(Import.Desoneracao="sim",Referencia.Desonerado,Referencia.NaoDesonerado) -> 0 | Z43: =ROUND(IF(ISNUMBER(R43),R43,IF(LEFT(R43,3)="BDI",HLOOKUP(R43,DADOS!$T$37:$X$38,2,FALSE),0)),15-11*$X$5) -> 0.22
A44: S | B44: 0 | C44: 1 | D44: 1 | E44: 5 | F44: 0 | G44: 5 | H44: 0 | I44: 0 | J44: Serviço | K44: 1.1.5.5. | L44: SINAPI - I | M44: 36178 | N44: Piso podotátil de concreto - direcional, 40 x 40 x 2,5 cm (comprimento X largura X espessura) | O44: Unidade | P44: 360.4 | Q44: 9.43 | R44: BDI 1 | S44: 11.5 | T44: 4144.6 | U44: ACIMA REF. | V44: =IF(OR($A44=0,$A44="S",$A44>CFF!$A$9),"",MAX(V$12:OFFSET(V44,-1,0))+1) ->  | W44: SINAPI - I -36178 | Y44: 0 | Z44: =ROUND(IF(ISNUMBER(R44),R44,IF(LEFT(R44,3)="BDI",HLOOKUP(R44,DADOS!$T$37:$X$38,2,FALSE),0)),15-11*$X$5) -> 0.22
A45: S | B45: 0 | C45: 1 | D45: 1 | E45: 5 | F45: 0 | G45: 6 | H45: 0 | I45: 0 | J45: Serviço | K45: 1.1.5.6. | L45: SINAPI - I | M45: 36178 | N45: Piso podotátil de concreto - alerta, 40 x 40 x 2,5 cm (comprimento X largura X espessura) | O45: Unidade | P45: 45.2 | Q45: 9.43 | R45: BDI 1 | S45: 11.5 | T45: 519.8 | U45: ACIMA REF. | V45: =IF(OR($A45=0,$A45="S",$A45>CFF!$A$9),"",MAX(V$12:OFFSET(V45,-1,0))+1) ->  | W45: SINAPI - I-36178 | Y45: 0 | Z45: =ROUND(IF(ISNUMBER(R45),R45,IF(LEFT(R45,3)="BDI",HLOOKUP(R45,DADOS!$T$37:$X$38,2,FALSE),0)),15-11*$X$5) -> 0.22
A46: 3 | B46: 4 | C46: 1 | D46: 1 | E46: 6 | F46: 0 | G46: 0 | H46: 12 | I46: 4 | J46: Nível 3 | K46: 1.1.6. | N46: MURETA DE BALISAMENTO EM CONCRETO | R46: BDI 1 | S46: 0 | T46: 16526.33 | V46: =IF(OR($A46=0,$A46="S",$A46>CFF!$A$9),"",MAX(V$12:OFFSET(V46,-1,0))+1) -> 8 | W46: FALSE | X46: X | Y46: 0 | Z46: =ROUND(IF(ISNUMBER(R46),R46,IF(LEFT(R46,3)="BDI",HLOOKUP(R46,DADOS!$T$37:$X$38,2,FALSE),0)),15-11*$X$5) -> 0.22
A47: S | B47: 0 | C47: 1 | D47: 1 | E47: 6 | F47: 0 | G47: 1 | H47: 0 | I47: 0 | J47: Serviço | K47: 1.1.6.1. | L47: SINAPI | M47: 6193 | N47: Forma em tábua 2,5 x 30 cm, em pinus, mista ou equivalente da região | O47: m² | P47: 50 | Q47: 41.5 | R47: BDI 1 | S47: 50.63 | T47: 2531.5 | U47: ACIMA REF. | V47: =IF(OR($A47=0,$A47="S",$A47>CFF!$A$9),"",MAX(V$12:OFFSET(V47,-1,0))+1) ->  | W47: SINAPI-6193 | Y47: 0 | Z47: =ROUND(IF(ISNUMBER(R47),R47,IF(LEFT(R47,3)="BDI",HLOOKUP(R47,DADOS!$T$37:$X$38,2,FALSE),0)),15-11*$X$5) -> 0.22
A48: S | B48: 0 | C48: 1 | D48: 1 | E48: 6 | F48: 0 | G48: 2 | H48: 0 | I48: 0 | J48: Serviço | K48: 1.1.6.2. | L48: SINAPI | M48: 34492 | N48: Concreto Usinado bombeavel, classe de resistência C20, com brita 0 e 1, Slump = 130 +- 20 mm, exclui o serviço de bombeamento (NBR8953) | O48: m³ | P48: 16.7 | Q48: 401.13 | R48: BDI 1 | S48: 489.38 | T48: 8172.65 | U48: ACIMA REF. | V48: =IF(OR($A48=0,$A48="S",$A48>CFF!$A$9),"",MAX(V$12:OFFSET(V48,-1,0))+1) ->  | W48: SINAPI-34492 | Y48: 0 | Z48: =ROUND(IF(ISNUMBER(R48),R48,IF(LEFT(R48,3)="BDI",HLOOKUP(R48,DADOS!$T$37:$X$38,2,FALSE),0)),15-11*$X$5) -> 0.22
A49: S | B49: 0 | C49: 1 | D49: 1 | E49: 6 | F49: 0 | G49: 3 | H49: 0 | I49: 0 | J49: Serviço | K49: 1.1.6.3. | L49: SINAPI | M49: 42407 | N49: Treliça nervurada, altura 120 mm , diametro dos banzos inferiores e superiores 6,0 mm e diametro diagonais de 4,2 mm. | O49: m | P49: 417.66 | Q49: 11.43 | R49: BDI 1 | S49: 13.94 | T49: 5822.18 | U49: ACIMA REF. | V49: =IF(OR($A49=0,$A49="S",$A49>CFF!$A$9),"",MAX(V$12:OFFSET(V49,-1,0))+1) ->  | W49: SINAPI-42407 | Y49: 0 | Z49: =ROUND(IF(ISNUMBER(R49),R49,IF(LEFT(R49,3)="BDI",HLOOKUP(R49,DADOS!$T$37:$X$38,2,FALSE),0)),15-11*$X$5) -> 0.22
A50: 3 | B50: 6 | C50: 1 | D50: 1 | E50: 7 | F50: 0 | G50: 0 | H50: 8 | I50: 6 | J50: Nível 3 | K50: 1.1.7. | N50: PINTURA E SINALIZAÇÃO | R50: BDI 1 | S50: 0 | T50: 7327.67 | V50: =IF(OR($A50=0,$A50="S",$A50>CFF!$A$9),"",MAX(V$12:OFFSET(V50,-1,0))+1) -> 9 | W50: FALSE | X50: X | Y50: 0 | Z50: =ROUND(IF(ISNUMBER(R50),R50,IF(LEFT(R50,3)="BDI",HLOOKUP(R50,DADOS!$T$37:$X$38,2,FALSE),0)),15-11*$X$5) -> 0.22
A51: S | B51: 0 | C51: 1 | D51: 1 | E51: 7 | F51: 0 | G51: 1 | H51: 0 | I51: 0 | J51: Serviço | K51: 1.1.7.1. | L51: SINAPI | M51: 102509 | N51: Pintura de faixa de pedestre, tinta retrorefletiva a base de resina acrilica com micro esferas devidro, aplicação manual. AF_05/2021 | O51: m² | P51: 110.26 | Q51: 22.48 | R51: BDI 1 | S51: 27.43 | T51: 3024.43 | U51: ACIMA REF. | V51: =IF(OR($A51=0,$A51="S",$A51>CFF!$A$9),"",MAX(V$12:OFFSET(V51,-1,0))+1) ->  | W51: SINAPI-102509 | Y51: 0 | Z51: =ROUND(IF(ISNUMBER(R51),R51,IF(LEFT(R51,3)="BDI",HLOOKUP(R51,DADOS!$T$37:$X$38,2,FALSE),0)),15-11*$X$5) -> 0.22
A52: =CHOOSE(1+LOG(1+2*(J52="Meta")+4*(J52="Nível 2")+8*(J52="Nível 3")+16*(J52="Nível 4")+32*(J52="Serviço"),2),0,1,2,3,4,"S") -> S | B52: =IF(OR(A52="S",A52=0),0,IF(ISERROR(I52),H52,SMALL(H52:I52,1))) -> 0 | C52: =IF($A52=1,OFFSET(C52,-1,0)+1,OFFSET(C52,-1,0)) -> 1 | D52: =IF($A52=1,0,IF($A52=2,OFFSET(D52,-1,0)+1,OFFSET(D52,-1,0))) -> 1 | E52: =IF(AND($A52<=2,$A52<>0),0,IF($A52=3,OFFSET(E52,-1,0)+1,OFFSET(E52,-1,0))) -> 7 | F52: =IF(AND($A52<=3,$A52<>0),0,IF($A52=4,OFFSET(F52,-1,0)+1,OFFSET(F52,-1,0))) -> 0 | G52: =IF(AND($A52<=4,$A52<>0),0,IF($A52="S",OFFSET(G52,-1,0)+1,OFFSET(G52,-1,0))) -> 2 | H52: 0 | I52: 0 | J52: Serviço | K52: =IF($A52=0,"-",CONCATENATE(C52&".",IF(AND($A$5>=2,$A52>=2),D52&".",""),IF(AND($A$5>=3,$A52>=3),E52&".",""),IF(AND($A$5>=4,$A52>=4),F52&".",""),IF($A52="S",G52&".",""))) -> 1.1.7.2. | L52: SINAPI | M52: 102512 | N52: Pintura de eixo viário, com tinta retrorefletiva a base de resina acrilica com micro esferas de vidro, aplicação macanica com emarcadora autopropelida. AF_05/2021 | O52: m | P52: 596.66 | Q52: 4.01 | R52: BDI 1 | S52: =IF($A52="S",IF($Q$10="Preço Unitário (R$)",PO.CustoUnitario,ROUND(PO.CustoUnitario*(1+$Z52),15-13*$X$6)),0) -> 4.89 | T52: =IF($A52="S",VTOTAL1,IF($A52=0,0,ROUND(SomaAgrup,15-13*$X$7))) -> 2917.67 | U52: =IF($J52="","",IF($N52="","DESCRIÇÃO",IF(AND($J52="Serviço",$O52=""),"UNIDADE",IF($T52<=0,"SEM VALOR",IF(AND($Y52<>"",$Q52>$Y52),"ACIMA REF.",""))))) -> ACIMA REF. | V52: =IF(OR($A52=0,$A52="S",$A52>CFF!$A$9),"",MAX(V$12:OFFSET(V52,-1,0))+1) ->  | W52: =IF(AND($J52="Serviço",$M52<>""),IF($L52="",$M52,CONCATENATE($L52,"-",$M52))) -> SINAPI -102512 | X52: =IF(AND(Fonte<>"",Código<>""),MATCH(Fonte&" "&IF(Fonte="sinapi",SUBSTITUTE(SUBSTITUTE(Código,"/00","/"),"/0","/"),Código),INDIRECT("'[Referência "&_xlnm.Database&".xls]Banco'!$a:$a"),0),"X") ->  | Y52: =IF(Import.Desoneracao="sim",Referencia.Desonerado,Referencia.NaoDesonerado) -> 0 | Z52: =ROUND(IF(ISNUMBER(R52),R52,IF(LEFT(R52,3)="BDI",HLOOKUP(R52,DADOS!$T$37:$X$38,2,FALSE),0)),15-11*$X$5) -> 0.22
A53: =CHOOSE(1+LOG(1+2*(J53="Meta")+4*(J53="Nível 2")+8*(J53="Nível 3")+16*(J53="Nível 4")+32*(J53="Serviço"),2),0,1,2,3,4,"S") -> S | B53: =IF(OR(A53="S",A53=0),0,IF(ISERROR(I53),H53,SMALL(H53:I53,1))) -> 0 | C53: =IF($A53=1,OFFSET(C53,-1,0)+1,OFFSET(C53,-1,0)) -> 1 | D53: =IF($A53=1,0,IF($A53=2,OFFSET(D53,-1,0)+1,OFFSET(D53,-1,0))) -> 1 | E53: =IF(AND($A53<=2,$A53<>0),0,IF($A53=3,OFFSET(E53,-1,0)+1,OFFSET(E53,-1,0))) -> 7 | F53: =IF(AND($A53<=3,$A53<>0),0,IF($A53=4,OFFSET(F53,-1,0)+1,OFFSET(F53,-1,0))) -> 0 | G53: =IF(AND($A53<=4,$A53<>0),0,IF($A53="S",OFFSET(G53,-1,0)+1,OFFSET(G53,-1,0))) -> 3 | H53: 0 | I53: 0 | J53: Serviço | K53: =IF($A53=0,"-",CONCATENATE(C53&".",IF(AND($A$5>=2,$A53>=2),D53&".",""),IF(AND($A$5>=3,$A53>=3),E53&".",""),IF(AND($A$5>=4,$A53>=4),F53&".",""),IF($A53="S",G53&".",""))) -> 1.1.7.3. | L53: SINAPI - I | M53: 13521 | N53: Placa de aço esmaltada para a identificação de Rua 45 cm x 20 cm | O53: und | P53: 2 | Q53: 74.25 | R53: BDI 1 | S53: =IF($A53="S",IF($Q$10="Preço Unitário (R$)",PO.CustoUnitario,ROUND(PO.CustoUnitario*(1+$Z53),15-13*$X$6)),0) -> 90.59 | T53: =IF($A53="S",VTOTAL1,IF($A53=0,0,ROUND(SomaAgrup,15-13*$X$7))) -> 181.18 | U53: =IF($J53="","",IF($N53="","DESCRIÇÃO",IF(AND($J53="Serviço",$O53=""),"UNIDADE",IF($T53<=0,"SEM VALOR",IF(AND($Y53<>"",$Q53>$Y53),"ACIMA REF.",""))))) -> ACIMA REF. | V53: =IF(OR($A53=0,$A53="S",$A53>CFF!$A$9),"",MAX(V$12:OFFSET(V53,-1,0))+1) ->  | W53: =IF(AND($J53="Serviço",$M53<>""),IF($L53="",$M53,CONCATENATE($L53,"-",$M53))) -> SINAPI - I-13521 | X53: =IF(AND(Fonte<>"",Código<>""),MATCH(Fonte&" "&IF(Fonte="sinapi",SUBSTITUTE(SUBSTITUTE(Código,"/00","/"),"/0","/"),Código),INDIRECT("'[Referência "&_xlnm.Database&".xls]Banco'!$a:$a"),0),"X") ->  | Y53: =IF(Import.Desoneracao="sim",Referencia.Desonerado,Referencia.NaoDesonerado) -> 0 | Z53: =ROUND(IF(ISNUMBER(R53),R53,IF(LEFT(R53,3)="BDI",HLOOKUP(R53,DADOS!$T$37:$X$38,2,FALSE),0)),15-11*$X$5) -> 0.22
A54: S | B54: 0 | C54: 1 | D54: 1 | E54: 7 | F54: 0 | G54: 4 | H54: 0 | I54: 0 | J54: Serviço | K54: 1.1.7.4. | L54: SINAPI | M54: 34723 | N54: Plaça de sinalização em chapa de aço tot. pintura refletiva | O54: m² | P54: 0.5 | Q54: 519.75 | R54: BDI 1 | S54: 634.1 | T54: 317.05 | U54: ACIMA REF. | V54: =IF(OR($A54=0,$A54="S",$A54>CFF!$A$9),"",MAX(V$12:OFFSET(V54,-1,0))+1) ->  | W54: SINAPI-34723 | Y54: 0 | Z54: =ROUND(IF(ISNUMBER(R54),R54,IF(LEFT(R54,3)="BDI",HLOOKUP(R54,DADOS!$T$37:$X$38,2,FALSE),0)),15-11*$X$5) -> 0.22
A55: S | B55: 0 | C55: 1 | D55: 1 | E55: 7 | F55: 0 | G55: 5 | H55: 0 | I55: 0 | J55: Serviço | K55: 1.1.7.5. | L55: SINAPI - I | M55: 21014 | N55: Tubo de aço galvanizado c/ costura DN 2 1/2" (65mm), E=3,35 mm | O55: m | P55: 6 | Q55: 121.22 | R55: BDI 1 | S55: 147.89 | T55: 887.34 | U55: ACIMA REF. | V55: =IF(OR($A55=0,$A55="S",$A55>CFF!$A$9),"",MAX(V$12:OFFSET(V55,-1,0))+1) ->  | W55: SINAPI - I-21014 | Y55: 0 | Z55: =ROUND(IF(ISNUMBER(R55),R55,IF(LEFT(R55,3)="BDI",HLOOKUP(R55,DADOS!$T$37:$X$38,2,FALSE),0)),15-11*$X$5) -> 0.22
A56: 3 | B56: 2 | C56: 1 | D56: 1 | E56: 8 | F56: 0 | G56: 0 | H56: 2 | J56: Nível 3 | K56: 1.1.8. | N56: SERVIÇOS COMPLEMENTARES - LIMPEZA FINAL DA OBRA | R56: BDI 1 | S56: 0 | T56: 1619.5 | V56: =IF(OR($A56=0,$A56="S",$A56>CFF!$A$9),"",MAX(V$12:OFFSET(V56,-1,0))+1) -> 10 | W56: FALSE | X56: X | Y56: 0 | Z56: =ROUND(IF(ISNUMBER(R56),R56,IF(LEFT(R56,3)="BDI",HLOOKUP(R56,DADOS!$T$37:$X$38,2,FALSE),0)),15-11*$X$5) -> 0.22
A57: S | B57: 0 | C57: 1 | D57: 1 | E57: 8 | F57: 0 | G57: 1 | H57: 0 | I57: 0 | J57: Serviço | K57: 1.1.8.1. | L57: SINAPI - I | M57: 5901 | N57: Caminhão Pipa 10.000L, peso bruto total de 23.000 kg, inclusive tanque de aço para o transporte de água, capacidade de 10 m³ | O57: h | P57: 5 | Q57: 265.49 | R57: BDI 1 | S57: 323.9 | T57: 1619.5 | U57: ACIMA REF. | V57: =IF(OR($A57=0,$A57="S",$A57>CFF!$A$9),"",MAX(V$12:OFFSET(V57,-1,0))+1) ->  | W57: SINAPI - I -5901 | Y57: 0 | Z57: =ROUND(IF(ISNUMBER(R57),R57,IF(LEFT(R57,3)="BDI",HLOOKUP(R57,DADOS!$T$37:$X$38,2,FALSE),0)),15-11*$X$5) -> 0.22
A58: -1 | C58: 0 | D58: 0 | E58: 0 | F58: 0 | G58: 0
K59: Encargos sociais: | M59: Para elaboração deste orçamento, foram utilizados os encargos sociais do SINAPI para a Unidade da Federação indicada.
K61: Observações:
K66: =IF(AND($X$3=FALSE,$X$4=FALSE,$X$5=FALSE,$X$6=FALSE,$X$7=FALSE),"Não foi considerado arredondamento nos valores da planilha.",CONCATENATE("Foi considerado arredondamento de duas casas decimais para ",IF($X$3=TRUE,"Quantidade; ",""),IF($X$4=TRUE,"Custo Unitário; ",""),IF($X$5=TRUE,"BDI; ",""),IF($X$6=TRUE,"Preço Unitário; ",""),IF($X$7=TRUE,"Preço Total.",""))) -> Foi considerado arredondamento de duas casas decimais para Quantidade; Custo Unitário; BDI; Preço Unitário; Preço Total.
K69: =Import.Município -> Tunápolis/SC
K70: Local
K72: =TODAY() -> 2022-04-11
K73: Data

Sheet PLQ (hidden)
E1: PLQ - | F1: PLANILHA DE LEVANTAMENTO DE QUANTIDADES
E7: =OFFSET(PO!$P$12,ROW($E7)-ROW(E$12),0) -> 0
E9: - | F9: Única
A10: Nível | B10: Item | C10: Descrição | D10: Unid. | E10: Quantidade | F10: =IF(OFFSET(F10,0,-1)="Quantidade",1,OFFSET(F10,0,-1)+1) -> 1 | G10: 2 | H10: 3 | I10: 4 | J10: 5 | K10: 6 | L10: 7 | M10: 8 | N10: 9 | O10: 10 | U10: =IF(OFFSET(U10,0,-1)="Quantidade",1,OFFSET(U10,0,-1)+1) -> 1
A11: =OFFSET(PO!J$12,ROW(A11)-ROW($A$12),0) -> Serviço | B11: =IF($A11=0,"",OFFSET(PO!K$12,ROW(B11)-ROW(B$12),0)) ->  | C11: =IF(OFFSET(PO!N$12,ROW(C11)-ROW(C$12),0)=0,"",OFFSET(PO!N$12,ROW(C11)-ROW(C$12),0)) ->  | D11: =IF(OFFSET(PO!O$12,ROW(D11)-ROW(D$12),0)=0,"",OFFSET(PO!O$12,ROW(D11)-ROW(D$12),0)) ->  | E11: =IF($A11<>"Serviço",0,ROUND(SUMIF($F$9:$P$9,"<>",$F11:$P11),15-13*PO!$X$3)) -> 0 | F11: =OFFSET(PO!$P$12,ROW($E11)-ROW(F$12),0) -> 0
A12: =PO!J12 -> LOTE | C12: =PO!N12 -> 0
A13: =OFFSET(PO!J$12,ROW(A13)-ROW($A$12),0) -> Meta | B13: =IF($A13=0,"",OFFSET(PO!K$12,ROW(B13)-ROW(B$12),0)) -> 1. | C13: =IF(OFFSET(PO!N$12,ROW(C13)-ROW(C$12),0)=0,"",OFFSET(PO!N$12,ROW(C13)-ROW(C$12),0)) -> PAVIMENTAÇÃO ASFÁLTICA | D13: =IF(OFFSET(PO!O$12,ROW(D13)-ROW(D$12),0)=0,"",OFFSET(PO!O$12,ROW(D13)-ROW(D$12),0)) ->  | E13: =IF($A13<>"Serviço",0,ROUND(SUMIF($F$9:$P$9,"<>",$F13:$P13),15-13*PO!$X$3)) -> 0 | F13: 0
A14: =OFFSET(PO!J$12,ROW(A14)-ROW($A$12),0) -> Nível 2 | B14: =IF($A14=0,"",OFFSET(PO!K$12,ROW(B14)-ROW(B$12),0)) -> 1.1. | C14: =IF(OFFSET(PO!N$12,ROW(C14)-ROW(C$12),0)=0,"",OFFSET(PO!N$12,ROW(C14)-ROW(C$12),0)) -> RUAS FELIPE ARSÊNIO BAMBERG E AMELDA TEREZA BIEGER | D14: =IF(OFFSET(PO!O$12,ROW(D14)-ROW(D$12),0)=0,"",OFFSET(PO!O$12,ROW(D14)-ROW(D$12),0)) ->  | E14: =IF($A14<>"Serviço",0,ROUND(SUMIF($F$9:$P$9,"<>",$F14:$P14),15-13*PO!$X$3)) -> 0 | F14: 0
A15: =OFFSET(PO!J$12,ROW(A15)-ROW($A$12),0) -> Nível 3 | B15: =IF($A15=0,"",OFFSET(PO!K$12,ROW(B15)-ROW(B$12),0)) -> 1.1.1. | C15: =IF(OFFSET(PO!N$12,ROW(C15)-ROW(C$12),0)=0,"",OFFSET(PO!N$12,ROW(C15)-ROW(C$12),0)) -> SERVIÇOS PRELIMINARES | D15: =IF(OFFSET(PO!O$12,ROW(D15)-ROW(D$12),0)=0,"",OFFSET(PO!O$12,ROW(D15)-ROW(D$12),0)) ->  | E15: =IF($A15<>"Serviço",0,ROUND(SUMIF($F$9:$P$9,"<>",$F15:$P15),15-13*PO!$X$3)) -> 0 | F15: 0
A16: =OFFSET(PO!J$12,ROW(A16)-ROW($A$12),0) -> Serviço | B16: =IF($A16=0,"",OFFSET(PO!K$12,ROW(B16)-ROW(B$12),0)) -> 1.1.1.1. | C16: =IF(OFFSET(PO!N$12,ROW(C16)-ROW(C$12),0)=0,"",OFFSET(PO!N$12,ROW(C16)-ROW(C$12),0)) -> Placa de obra (construção civil) em chapa de aço galvanizado, nº22, adesivada. | D16: =IF(OFFSET(PO!O$12,ROW(D16)-ROW(D$12),0)=0,"",OFFSET(PO!O$12,ROW(D16)-ROW(D$12),0)) -> m² | E16: =IF($A16<>"Serviço",0,ROUND(SUMIF($F$9:$P$9,"<>",$F16:$P16),15-13*PO!$X$3)) -> 2.5 | F16: 2.5
A17: =OFFSET(PO!J$12,ROW(A17)-ROW($A$12),0) -> Serviço | B17: =IF($A17=0,"",OFFSET(PO!K$12,ROW(B17)-ROW(B$12),0)) -> 1.1.1.2. | C17: =IF(OFFSET(PO!N$12,ROW(C17)-ROW(C$12),0)=0,"",OFFSET(PO!N$12,ROW(C17)-ROW(C$12),0)) -> Encarregado geral de obra | D17: =IF(OFFSET(PO!O$12,ROW(D17)-ROW(D$12),0)=0,"",OFFSET(PO!O$12,ROW(D17)-ROW(D$12),0)) -> h | E17: =IF($A17<>"Serviço",0,ROUND(SUMIF($F$9:$P$9,"<>",$F17:$P17),15-13*PO!$X$3)) -> 60 | F17: 60
A18: =OFFSET(PO!J$12,ROW(A18)-ROW($A$12),0) -> Serviço | B18: =IF($A18=0,"",OFFSET(PO!K$12,ROW(B18)-ROW(B$12),0)) -> 1.1.1.3. | C18: =IF(OFFSET(PO!N$12,ROW(C18)-ROW(C$12),0)=0,"",OFFSET(PO!N$12,ROW(C18)-ROW(C$12),0)) -> Engenheiro civil | D18: =IF(OFFSET(PO!O$12,ROW(D18)-ROW(D$12),0)=0,"",OFFSET(PO!O$12,ROW(D18)-ROW(D$12),0)) -> h | E18: =IF($A18<>"Serviço",0,ROUND(SUMIF($F$9:$P$9,"<>",$F18:$P18),15-13*PO!$X$3)) -> 15 | F18: =OFFSET(PO!$P$12,ROW($E18)-ROW(F$12),0) -> 15
A19: =OFFSET(PO!J$12,ROW(A19)-ROW($A$12),0) -> Serviço | B19: =IF($A19=0,"",OFFSET(PO!K$12,ROW(B19)-ROW(B$12),0)) -> 1.1.1.4. | C19: =IF(OFFSET(PO!N$12,ROW(C19)-ROW(C$12),0)=0,"",OFFSET(PO!N$12,ROW(C19)-ROW(C$12),0)) -> Topográfo para a marcação planialtimetrica da pavimentação | D19: =IF(OFFSET(PO!O$12,ROW(D19)-ROW(D$12),0)=0,"",OFFSET(PO!O$12,ROW(D19)-ROW(D$12),0)) -> h | E19: =IF($A19<>"Serviço",0,ROUND(SUMIF($F$9:$P$9,"<>",$F19:$P19),15-13*PO!$X$3)) -> 0 | F19: 0
A20: =OFFSET(PO!J$12,ROW(A20)-ROW($A$12),0) -> Nível 3 | B20: =IF($A20=0,"",OFFSET(PO!K$12,ROW(B20)-ROW(B$12),0)) -> 1.1.2. | C20: =IF(OFFSET(PO!N$12,ROW(C20)-ROW(C$12),0)=0,"",OFFSET(PO!N$12,ROW(C20)-ROW(C$12),0)) -> DRENAGEM E RECOMPOSIÇÃO DE PAVIMENTO | D20: =IF(OFFSET(PO!O$12,ROW(D20)-ROW(D$12),0)=0,"",OFFSET(PO!O$12,ROW(D20)-ROW(D$12),0)) ->  | E20: =IF($A20<>"Serviço",0,ROUND(SUMIF($F$9:$P$9,"<>",$F20:$P20),15-13*PO!$X$3)) -> 0 | F20: 0
A21: =OFFSET(PO!J$12,ROW(A21)-ROW($A$12),0) -> Serviço | B21: =IF($A21=0,"",OFFSET(PO!K$12,ROW(B21)-ROW(B$12),0)) -> 1.1.2.1. | C21: =IF(OFFSET(PO!N$12,ROW(C21)-ROW(C$12),0)=0,"",OFFSET(PO!N$12,ROW(C21)-ROW(C$12),0)) -> Escavação mecanizada de vala com profundidade até 1,5m, escavadeira hidraulica (0,8 m³), largura de 1,5 m até 2,5 m, locais cm baixo nivel de interferência. AF_02/2021 | D21: =IF(OFFSET(PO!O$12,ROW(D21)-ROW(D$12),0)=0,"",OFFSET(PO!O$12,ROW(D21)-ROW(D$12),0)) -> m³ | E21: =IF($A21<>"Serviço",0,ROUND(SUMIF($F$9:$P$9,"<>",$F21:$P21),15-13*PO!$X$3)) -> 0 | F21: 0
A22: =OFFSET(PO!J$12,ROW(A22)-ROW($A$12),0) -> Serviço | B22: =IF($A22=0,"",OFFSET(PO!K$12,ROW(B22)-ROW(B$12),0)) -> 1.1.2.2. | C22: =IF(OFFSET(PO!N$12,ROW(C22)-ROW(C$12),0)=0,"",OFFSET(PO!N$12,ROW(C22)-ROW(C$12),0)) -> Desmonte de material de 3ª categoria (blocos de rochas ou matações) com martelete pneumatico hidráulico. Exclusive carga e transporte. AF_03/2021 | D22: =IF(OFFSET(PO!O$12,ROW(D22)-ROW(D$12),0)=0,"",OFFSET(PO!O$12,ROW(D22)-ROW(D$12),0)) -> m³ | E22: =IF($A22<>"Serviço",0,ROUND(SUMIF($F$9:$P$9,"<>",$F22:$P22),15-13*PO!$X$3)) -> 0 | F22: 0
A23: =OFFSET(PO!J$12,ROW(A23)-ROW($A$12),0) -> Serviço | B23: =IF($A23=0,"",OFFSET(PO!K$12,ROW(B23)-ROW(B$12),0)) -> 1.1.2.3. | C23: =IF(OFFSET(PO!N$12,ROW(C23)-ROW(C$12),0)=0,"",OFFSET(PO!N$12,ROW(C23)-ROW(C$12),0)) -> Tubo de concreto para redes coletoras de águas pluviais, diâmetro de 400 mm, junta rigida, instalado em local de com baixo nivel de interferência - fornecimento e assentamento. AF_12/2015 | D23: =IF(OFFSET(PO!O$12,ROW(D23)-ROW(D$12),0)=0,"",OFFSET(PO!O$12,ROW(D23)-ROW(D$12),0)) -> m | E23: =IF($A23<>"Serviço",0,ROUND(SUMIF($F$9:$P$9,"<>",$F23:$P23),15-13*PO!$X$3)) -> 0 | F23: 0
A24: =OFFSET(PO!J$12,ROW(A24)-ROW($A$12),0) -> Serviço | B24: =IF($A24=0,"",OFFSET(PO!K$12,ROW(B24)-ROW(B$12),0)) -> 1.1.2.4. | C24: =IF(OFFSET(PO!N$12,ROW(C24)-ROW(C$12),0)=0,"",OFFSET(PO!N$12,ROW(C24)-ROW(C$12),0)) -> Tubo de concreto para redes coletoras de águas pluviais, diâmetro de 600 mm, junta rígida, instalado em loacal com baixo nivel de interferência - fornecimento e assentamento. AF_12/2015 | D24: =IF(OFFSET(PO!O$12,ROW(D24)-ROW(D$12),0)=0,"",OFFSET(PO!O$12,ROW(D24)-ROW(D$12),0)) -> m | E24: =IF($A24<>"Serviço",0,ROUND(SUMIF($F$9:$P$9,"<>",$F24:$P24),15-13*PO!$X$3)) -> 0 | F24: 0
A25: =OFFSET(PO!J$12,ROW(A25)-ROW($A$12),0) -> Serviço | B25: =IF($A25=0,"",OFFSET(PO!K$12,ROW(B25)-ROW(B$12),0)) -> 1.1.2.5. | C25: =IF(OFFSET(PO!N$12,ROW(C25)-ROW(C$12),0)=0,"",OFFSET(PO!N$12,ROW(C25)-ROW(C$12),0)) -> Caixa com grelha para boca de lobo simples retangular, em concreto pré moldado, dimensões 0,6x1,0x1,0 m. AF_12/2020 | D25: =IF(OFFSET(PO!O$12,ROW(D25)-ROW(D$12),0)=0,"",OFFSET(PO!O$12,ROW(D25)-ROW(D$12),0)) -> Unidade | E25: =IF($A25<>"Serviço",0,ROUND(SUMIF($F$9:$P$9,"<>",$F25:$P25),15-13*PO!$X$3)) -> 0 | F25: 0
A26: =OFFSET(PO!J$12,ROW(A26)-ROW($A$12),0) -> Serviço | B26: =IF($A26=0,"",OFFSET(PO!K$12,ROW(B26)-ROW(B$12),0)) -> 1.1.2.6. | C26: =IF(OFFSET(PO!N$12,ROW(C26)-ROW(C$12),0)=0,"",OFFSET(PO!N$12,ROW(C26)-ROW(C$12),0)) -> Reaterro e compactação de vala. | D26: =IF(OFFSET(PO!O$12,ROW(D26)-ROW(D$12),0)=0,"",OFFSET(PO!O$12,ROW(D26)-ROW(D$12),0)) -> m³ | E26: =IF($A26<>"Serviço",0,ROUND(SUMIF($F$9:$P$9,"<>",$F26:$P26),15-13*PO!$X$3)) -> 0 | F26: 0
A27: =OFFSET(PO!J$12,ROW(A27)-ROW($A$12),0) -> Nível 3 | B27: =IF($A27=0,"",OFFSET(PO!K$12,ROW(B27)-ROW(B$12),0)) -> 1.1.3. | C27: =IF(OFFSET(PO!N$12,ROW(C27)-ROW(C$12),0)=0,"",OFFSET(PO!N$12,ROW(C27)-ROW(C$12),0)) -> MEIOS - FIOS | D27: =IF(OFFSET(PO!O$12,ROW(D27)-ROW(D$12),0)=0,"",OFFSET(PO!O$12,ROW(D27)-ROW(D$12),0)) ->  | E27: =IF($A27<>"Serviço",0,ROUND(SUMIF($F$9:$P$9,"<>",$F27:$P27),15-13*PO!$X$3)) -> 0 | F27: 0
A28: =OFFSET(PO!J$12,ROW(A28)-ROW($A$12),0) -> Serviço | B28: =IF($A28=0,"",OFFSET(PO!K$12,ROW(B28)-ROW(B$12),0)) -> 1.1.3.1. | C28: =IF(OFFSET(PO!N$12,ROW(C28)-ROW(C$12),0)=0,"",OFFSET(PO!N$12,ROW(C28)-ROW(C$12),0)) -> Assentamento de guia (meio-fio) em trecho reto, confecionada em concreto pré fabricado, dimensões (100X15X13X30) cm, (comprimento X base inferior X base superior X altura), para vias urbanas. (uso viário). AF_06/2016 | D28: =IF(OFFSET(PO!O$12,ROW(D28)-ROW(D$12),0)=0,"",OFFSET(PO!O$12,ROW(D28)-ROW(D$12),0)) -> m | E28: =IF($A28<>"Serviço",0,ROUND(SUMIF($F$9:$P$9,"<>",$F28:$P28),15-13*PO!$X$3)) -> 0 | F28: 0
A29: =OFFSET(PO!J$12,ROW(A29)-ROW($A$12),0) -> Nível 3 | B29: =IF($A29=0,"",OFFSET(PO!K$12,ROW(B29)-ROW(B$12),0)) -> 1.1.4. | C29: =IF(OFFSET(PO!N$12,ROW(C29)-ROW(C$12),0)=0,"",OFFSET(PO!N$12,ROW(C29)-ROW(C$12),0)) -> PAVIMENTAÇÃO ASFÁLTICA SOBRE LEITO NATURAL | D29: =IF(OFFSET(PO!O$12,ROW(D29)-ROW(D$12),0)=0,"",OFFSET(PO!O$12,ROW(D29)-ROW(D$12),0)) ->  | E29: =IF($A29<>"Serviço",0,ROUND(SUMIF($F$9:$P$9,"<>",$F29:$P29),15-13*PO!$X$3)) -> 0 | F29: 0
A30: =OFFSET(PO!J$12,ROW(A30)-ROW($A$12),0) -> Serviço | B30: =IF($A30=0,"",OFFSET(PO!K$12,ROW(B30)-ROW(B$12),0)) -> 1.1.4.1. | C30: =IF(OFFSET(PO!N$12,ROW(C30)-ROW(C$12),0)=0,"",OFFSET(PO!N$12,ROW(C30)-ROW(C$12),0)) -> Escavação horizontal em solo de 1ª categoria com trator de esteiras (170 hp/lamina: 5,20 m³). AF_07/202 | D30: =IF(OFFSET(PO!O$12,ROW(D30)-ROW(D$12),0)=0,"",OFFSET(PO!O$12,ROW(D30)-ROW(D$12),0)) -> m³ | E30: =IF($A30<>"Serviço",0,ROUND(SUMIF($F$9:$P$9,"<>",$F30:$P30),15-13*PO!$X$3)) -> 0 | F30: 0
A31: =OFFSET(PO!J$12,ROW(A31)-ROW($A$12),0) -> Serviço | B31: =IF($A31=0,"",OFFSET(PO!K$12,ROW(B31)-ROW(B$12),0)) -> 1.1.4.2. | C31: =IF(OFFSET(PO!N$12,ROW(C31)-ROW(C$12),0)=0,"",OFFSET(PO!N$12,ROW(C31)-ROW(C$12),0)) -> Execução e compactação de aterro com solo predominantemente argiloso - exclusive escavação, carga e trasnporte e solo AF_09/2017 | D31: =IF(OFFSET(PO!O$12,ROW(D31)-ROW(D$12),0)=0,"",OFFSET(PO!O$12,ROW(D31)-ROW(D$12),0)) -> m³ | E31: =IF($A31<>"Serviço",0,ROUND(SUMIF($F$9:$P$9,"<>",$F31:$P31),15-13*PO!$X$3)) -> 294.95 | F31: 294.95
A32: =OFFSET(PO!J$12,ROW(A32)-ROW($A$12),0) -> Serviço | B32: =IF($A32=0,"",OFFSET(PO!K$12,ROW(B32)-ROW(B$12),0)) -> 1.1.4.3. | C32: =IF(OFFSET(PO!N$12,ROW(C32)-ROW(C$12),0)=0,"",OFFSET(PO!N$12,ROW(C32)-ROW(C$12),0)) -> Regularização e compactação do subleito de solo predominantemente argiloso. AF_11/2019 | D32: =IF(OFFSET(PO!O$12,ROW(D32)-ROW(D$12),0)=0,"",OFFSET(PO!O$12,ROW(D32)-ROW(D$12),0)) -> m² | E32: =IF($A32<>"Serviço",0,ROUND(SUMIF($F$9:$P$9,"<>",$F32:$P32),15-13*PO!$X$3)) -> 0 | F32: 0
A33: =OFFSET(PO!J$12,ROW(A33)-ROW($A$12),0) -> Serviço | B33: =IF($A33=0,"",OFFSET(PO!K$12,ROW(B33)-ROW(B$12),0)) -> 1.1.4.4. | C33: =IF(OFFSET(PO!N$12,ROW(C33)-ROW(C$12),0)=0,"",OFFSET(PO!N$12,ROW(C33)-ROW(C$12),0)) -> Execução e Compactação de base ou sub base em macadame - exclusive escavação, carga e transporte - AF_09/2017 - espessura 18cm | D33: =IF(OFFSET(PO!O$12,ROW(D33)-ROW(D$12),0)=0,"",OFFSET(PO!O$12,ROW(D33)-ROW(D$12),0)) -> m³ | E33: =IF($A33<>"Serviço",0,ROUND(SUMIF($F$9:$P$9,"<>",$F33:$P33),15-13*PO!$X$3)) -> 0 | F33: 0
A34: =OFFSET(PO!J$12,ROW(A34)-ROW($A$12),0) -> Serviço | B34: =IF($A34=0,"",OFFSET(PO!K$12,ROW(B34)-ROW(B$12),0)) -> 1.1.4.5. | C34: =IF(OFFSET(PO!N$12,ROW(C34)-ROW(C$12),0)=0,"",OFFSET(PO!N$12,ROW(C34)-ROW(C$12),0)) -> Execução e Compactação de base e ou sub base com com brita graduada simples (BGS) - exclusive carga e transporte AF_09/2017- espessura 12 cm | D34: =IF(OFFSET(PO!O$12,ROW(D34)-ROW(D$12),0)=0,"",OFFSET(PO!O$12,ROW(D34)-ROW(D$12),0)) -> m³ | E34: =IF($A34<>"Serviço",0,ROUND(SUMIF($F$9:$P$9,"<>",$F34:$P34),15-13*PO!$X$3)) -> 0 | F34: 0
A35: =OFFSET(PO!J$12,ROW(A35)-ROW($A$12),0) -> Serviço | B35: =IF($A35=0,"",OFFSET(PO!K$12,ROW(B35)-ROW(B$12),0)) -> 1.1.4.6. | C35: =IF(OFFSET(PO!N$12,ROW(C35)-ROW(C$12),0)=0,"",OFFSET(PO!N$12,ROW(C35)-ROW(C$12),0)) -> Imprimação de base de pavimentação com com asfalto diluido imprimação. Taxa de aplicação de 1,2 L/m². | D35: =IF(OFFSET(PO!O$12,ROW(D35)-ROW(D$12),0)=0,"",OFFSET(PO!O$12,ROW(D35)-ROW(D$12),0)) -> m² | E35: =IF($A35<>"Serviço",0,ROUND(SUMIF($F$9:$P$9,"<>",$F35:$P35),15-13*PO!$X$3)) -> 0 | F35: 0
A36: =OFFSET(PO!J$12,ROW(A36)-ROW($A$12),0) -> Serviço | B36: =IF($A36=0,"",OFFSET(PO!K$12,ROW(B36)-ROW(B$12),0)) -> 1.1.4.7. | C36: =IF(OFFSET(PO!N$12,ROW(C36)-ROW(C$12),0)=0,"",OFFSET(PO!N$12,ROW(C36)-ROW(C$12),0)) -> Pintura de Ligação com emulsão RR-2C taxa de 0,60 L/m² | D36: =IF(OFFSET(PO!O$12,ROW(D36)-ROW(D$12),0)=0,"",OFFSET(PO!O$12,ROW(D36)-ROW(D$12),0)) -> m² | E36: =IF($A36<>"Serviço",0,ROUND(SUMIF($F$9:$P$9,"<>",$F36:$P36),15-13*PO!$X$3)) -> 0 | F36: 0
A37: =OFFSET(PO!J$12,ROW(A37)-ROW($A$12),0) -> Serviço | B37: =IF($A37=0,"",OFFSET(PO!K$12,ROW(B37)-ROW(B$12),0)) -> 1.1.4.8. | C37: =IF(OFFSET(PO!N$12,ROW(C37)-ROW(C$12),0)=0,"",OFFSET(PO!N$12,ROW(C37)-ROW(C$12),0)) -> Construção de pavimento com aplicação de CBUQ, camada de rolamento, com espessura 5 cm, exclusive transporte. AF_03/2017 | D37: =IF(OFFSET(PO!O$12,ROW(D37)-ROW(D$12),0)=0,"",OFFSET(PO!O$12,ROW(D37)-ROW(D$12),0)) -> m³ | E37: =IF($A37<>"Serviço",0,ROUND(SUMIF($F$9:$P$9,"<>",$F37:$P37),15-13*PO!$X$3)) -> 0 | F37: 0
A38: =OFFSET(PO!J$12,ROW(A38)-ROW($A$12),0) -> Serviço | B38: =IF($A38=0,"",OFFSET(PO!K$12,ROW(B38)-ROW(B$12),0)) -> 1.1.4.9. | C38: =IF(OFFSET(PO!N$12,ROW(C38)-ROW(C$12),0)=0,"",OFFSET(PO!N$12,ROW(C38)-ROW(C$12),0)) -> Transporte comercial com caminhão basculante 18 m³, via pavimentada DMT acima de 30Km (unidade:m³xKm). AF_09/2016 DMT=43km | D38: =IF(OFFSET(PO!O$12,ROW(D38)-ROW(D$12),0)=0,"",OFFSET(PO!O$12,ROW(D38)-ROW(D$12),0)) -> m³xKm | E38: =IF($A38<>"Serviço",0,ROUND(SUMIF($F$9:$P$9,"<>",$F38:$P38),15-13*PO!$X$3)) -> 0 | F38: 0
A39: =OFFSET(PO!J$12,ROW(A39)-ROW($A$12),0) -> Nível 3 | B39: =IF($A39=0,"",OFFSET(PO!K$12,ROW(B39)-ROW(B$12),0)) -> 1.1.5. | C39: =IF(OFFSET(PO!N$12,ROW(C39)-ROW(C$12),0)=0,"",OFFSET(PO!N$12,ROW(C39)-ROW(C$12),0)) -> PASSEIOS | D39: =IF(OFFSET(PO!O$12,ROW(D39)-ROW(D$12),0)=0,"",OFFSET(PO!O$12,ROW(D39)-ROW(D$12),0)) ->  | E39: =IF($A39<>"Serviço",0,ROUND(SUMIF($F$9:$P$9,"<>",$F39:$P39),15-13*PO!$X$3)) -> 0 | F39: 0
A40: =OFFSET(PO!J$12,ROW(A40)-ROW($A$12),0) -> Serviço | B40: =IF($A40=0,"",OFFSET(PO!K$12,ROW(B40)-ROW(B$12),0)) -> 1.1.5.1. | C40: =IF(OFFSET(PO!N$12,ROW(C40)-ROW(C$12),0)=0,"",OFFSET(PO!N$12,ROW(C40)-ROW(C$12),0)) -> Regularização e compactação da base | D40: =IF(OFFSET(PO!O$12,ROW(D40)-ROW(D$12),0)=0,"",OFFSET(PO!O$12,ROW(D40)-ROW(D$12),0)) -> m² | E40: =IF($A40<>"Serviço",0,ROUND(SUMIF($F$9:$P$9,"<>",$F40:$P40),15-13*PO!$X$3)) -> 0 | F40: 0
A41: =OFFSET(PO!J$12,ROW(A41)-ROW($A$12),0) -> Serviço | B41: =IF($A41=0,"",OFFSET(PO!K$12,ROW(B41)-ROW(B$12),0)) -> 1.1.5.2. | C41: =IF(OFFSET(PO!N$12,ROW(C41)-ROW(C$12),0)=0,"",OFFSET(PO!N$12,ROW(C41)-ROW(C$12),0)) -> Lastro de brita - espessura 3 cm | D41: =IF(OFFSET(PO!O$12,ROW(D41)-ROW(D$12),0)=0,"",OFFSET(PO!O$12,ROW(D41)-ROW(D$12),0)) -> m³ | E41: =IF($A41<>"Serviço",0,ROUND(SUMIF($F$9:$P$9,"<>",$F41:$P41),15-13*PO!$X$3)) -> 0 | F41: 0
A42: =OFFSET(PO!J$12,ROW(A42)-ROW($A$12),0) -> Serviço | B42: =IF($A42=0,"",OFFSET(PO!K$12,ROW(B42)-ROW(B$12),0)) -> 1.1.5.3. | C42: =IF(OFFSET(PO!N$12,ROW(C42)-ROW(C$12),0)=0,"",OFFSET(PO!N$12,ROW(C42)-ROW(C$12),0)) -> Execução de passeios (calçada) ou piso de concreto moldado in loco, espessura 6 cm, usinado, acabamento convencional, não armado. AF_07/2016 | D42: =IF(OFFSET(PO!O$12,ROW(D42)-ROW(D$12),0)=0,"",OFFSET(PO!O$12,ROW(D42)-ROW(D$12),0)) -> m³ | E42: =IF($A42<>"Serviço",0,ROUND(SUMIF($F$9:$P$9,"<>",$F42:$P42),15-13*PO!$X$3)) -> 0 | F42: 0
A43: =OFFSET(PO!J$12,ROW(A43)-ROW($A$12),0) -> Serviço | B43: =IF($A43=0,"",OFFSET(PO!K$12,ROW(B43)-ROW(B$12),0)) -> 1.1.5.4. | C43: =IF(OFFSET(PO!N$12,ROW(C43)-ROW(C$12),0)=0,"",OFFSET(PO!N$12,ROW(C43)-ROW(C$12),0)) -> Execução de passeios (calçada) ou piso de concreto moldado in loco, espessura 6 cm, usinado, acabamento convencional, armado. AF_07/2016 | D43: =IF(OFFSET(PO!O$12,ROW(D43)-ROW(D$12),0)=0,"",OFFSET(PO!O$12,ROW(D43)-ROW(D$12),0)) -> m² | E43: =IF($A43<>"Serviço",0,ROUND(SUMIF($F$9:$P$9,"<>",$F43:$P43),15-13*PO!$X$3)) -> 108 | F43: =OFFSET(PO!$P$12,ROW($E43)-ROW(F$12),0) -> 108
A44: =OFFSET(PO!J$12,ROW(A44)-ROW($A$12),0) -> Serviço | B44: =IF($A44=0,"",OFFSET(PO!K$12,ROW(B44)-ROW(B$12),0)) -> 1.1.5.5. | C44: =IF(OFFSET(PO!N$12,ROW(C44)-ROW(C$12),0)=0,"",OFFSET(PO!N$12,ROW(C44)-ROW(C$12),0)) -> Piso podotátil de concreto - direcional, 40 x 40 x 2,5 cm (comprimento X largura X espessura) | D44: =IF(OFFSET(PO!O$12,ROW(D44)-ROW(D$12),0)=0,"",OFFSET(PO!O$12,ROW(D44)-ROW(D$12),0)) -> Unidade | E44: =IF($A44<>"Serviço",0,ROUND(SUMIF($F$9:$P$9,"<>",$F44:$P44),15-13*PO!$X$3)) -> 0 | F44: 0
A45: =OFFSET(PO!J$12,ROW(A45)-ROW($A$12),0) -> Serviço | B45: =IF($A45=0,"",OFFSET(PO!K$12,ROW(B45)-ROW(B$12),0)) -> 1.1.5.6. | C45: =IF(OFFSET(PO!N$12,ROW(C45)-ROW(C$12),0)=0,"",OFFSET(PO!N$12,ROW(C45)-ROW(C$12),0)) -> Piso podotátil de concreto - alerta, 40 x 40 x 2,5 cm (comprimento X largura X espessura) | D45: =IF(OFFSET(PO!O$12,ROW(D45)-ROW(D$12),0)=0,"",OFFSET(PO!O$12,ROW(D45)-ROW(D$12),0)) -> Unidade | E45: =IF($A45<>"Serviço",0,ROUND(SUMIF($F$9:$P$9,"<>",$F45:$P45),15-13*PO!$X$3)) -> 60 | F45: 60
A46: =OFFSET(PO!J$12,ROW(A46)-ROW($A$12),0) -> Nível 3 | B46: =IF($A46=0,"",OFFSET(PO!K$12,ROW(B46)-ROW(B$12),0)) -> 1.1.6. | C46: =IF(OFFSET(PO!N$12,ROW(C46)-ROW(C$12),0)=0,"",OFFSET(PO!N$12,ROW(C46)-ROW(C$12),0)) -> MURETA DE BALISAMENTO EM CONCRETO | D46: =IF(OFFSET(PO!O$12,ROW(D46)-ROW(D$12),0)=0,"",OFFSET(PO!O$12,ROW(D46)-ROW(D$12),0)) ->  | E46: =IF($A46<>"Serviço",0,ROUND(SUMIF($F$9:$P$9,"<>",$F46:$P46),15-13*PO!$X$3)) -> 0 | F46: 0
A47: =OFFSET(PO!J$12,ROW(A47)-ROW($A$12),0) -> Serviço | B47: =IF($A47=0,"",OFFSET(PO!K$12,ROW(B47)-ROW(B$12),0)) -> 1.1.6.1. | C47: =IF(OFFSET(PO!N$12,ROW(C47)-ROW(C$12),0)=0,"",OFFSET(PO!N$12,ROW(C47)-ROW(C$12),0)) -> Forma em tábua 2,5 x 30 cm, em pinus, mista ou equivalente da região | D47: =IF(OFFSET(PO!O$12,ROW(D47)-ROW(D$12),0)=0,"",OFFSET(PO!O$12,ROW(D47)-ROW(D$12),0)) -> m² | E47: =IF($A47<>"Serviço",0,ROUND(SUMIF($F$9:$P$9,"<>",$F47:$P47),15-13*PO!$X$3)) -> 15 | F47: 15
A48: =OFFSET(PO!J$12,ROW(A48)-ROW($A$12),0) -> Serviço | B48: =IF($A48=0,"",OFFSET(PO!K$12,ROW(B48)-ROW(B$12),0)) -> 1.1.6.2. | C48: =IF(OFFSET(PO!N$12,ROW(C48)-ROW(C$12),0)=0,"",OFFSET(PO!N$12,ROW(C48)-ROW(C$12),0)) -> Concreto Usinado bombeavel, classe de resistência C20, com brita 0 e 1, Slump = 130 +- 20 mm, exclui o serviço de bombeamento (NBR8953) | D48: =IF(OFFSET(PO!O$12,ROW(D48)-ROW(D$12),0)=0,"",OFFSET(PO!O$12,ROW(D48)-ROW(D$12),0)) -> m³ | E48: =IF($A48<>"Serviço",0,ROUND(SUMIF($F$9:$P$9,"<>",$F48:$P48),15-13*PO!$X$3)) -> 13.06 | F48: 13.06
A49: =OFFSET(PO!J$12,ROW(A49)-ROW($A$12),0) -> Serviço | B49: =IF($A49=0,"",OFFSET(PO!K$12,ROW(B49)-ROW(B$12),0)) -> 1.1.6.3. | C49: =IF(OFFSET(PO!N$12,ROW(C49)-ROW(C$12),0)=0,"",OFFSET(PO!N$12,ROW(C49)-ROW(C$12),0)) -> Treliça nervurada, altura 120 mm , diametro dos banzos inferiores e superiores 6,0 mm e diametro diagonais de 4,2 mm. | D49: =IF(OFFSET(PO!O$12,ROW(D49)-ROW(D$12),0)=0,"",OFFSET(PO!O$12,ROW(D49)-ROW(D$12),0)) -> m | E49: =IF($A49<>"Serviço",0,ROUND(SUMIF($F$9:$P$9,"<>",$F49:$P49),15-13*PO!$X$3)) -> 240.1 | F49: 240.1
A50: =OFFSET(PO!J$12,ROW(A50)-ROW($A$12),0) -> Nível 3 | B50: =IF($A50=0,"",OFFSET(PO!K$12,ROW(B50)-ROW(B$12),0)) -> 1.1.7. | C50: =IF(OFFSET(PO!N$12,ROW(C50)-ROW(C$12),0)=0,"",OFFSET(PO!N$12,ROW(C50)-ROW(C$12),0)) -> PINTURA E SINALIZAÇÃO | D50: =IF(OFFSET(PO!O$12,ROW(D50)-ROW(D$12),0)=0,"",OFFSET(PO!O$12,ROW(D50)-ROW(D$12),0)) ->  | E50: =IF($A50<>"Serviço",0,ROUND(SUMIF($F$9:$P$9,"<>",$F50:$P50),15-13*PO!$X$3)) -> 0 | F50: 0
A51: =OFFSET(PO!J$12,ROW(A51)-ROW($A$12),0) -> Serviço | B51: =IF($A51=0,"",OFFSET(PO!K$12,ROW(B51)-ROW(B$12),0)) -> 1.1.7.1. | C51: =IF(OFFSET(PO!N$12,ROW(C51)-ROW(C$12),0)=0,"",OFFSET(PO!N$12,ROW(C51)-ROW(C$12),0)) -> Pintura de faixa de pedestre, tinta retrorefletiva a base de resina acrilica com micro esferas devidro, aplicação manual. AF_05/2021 | D51: =IF(OFFSET(PO!O$12,ROW(D51)-ROW(D$12),0)=0,"",OFFSET(PO!O$12,ROW(D51)-ROW(D$12),0)) -> m² | E51: =IF($A51<>"Serviço",0,ROUND(SUMIF($F$9:$P$9,"<>",$F51:$P51),15-13*PO!$X$3)) -> 0 | F51: 0
A52: =OFFSET(PO!J$12,ROW(A52)-ROW($A$12),0) -> Serviço | B52: =IF($A52=0,"",OFFSET(PO!K$12,ROW(B52)-ROW(B$12),0)) -> 1.1.7.2. | C52: =IF(OFFSET(PO!N$12,ROW(C52)-ROW(C$12),0)=0,"",OFFSET(PO!N$12,ROW(C52)-ROW(C$12),0)) -> Pintura de eixo viário, com tinta retrorefletiva a base de resina acrilica com micro esferas de vidro, aplicação macanica com emarcadora autopropelida. AF_05/2021 | D52: =IF(OFFSET(PO!O$12,ROW(D52)-ROW(D$12),0)=0,"",OFFSET(PO!O$12,ROW(D52)-ROW(D$12),0)) -> m | E52: =IF($A52<>"Serviço",0,ROUND(SUMIF($F$9:$P$9,"<>",$F52:$P52),15-13*PO!$X$3)) -> 596.66 | F52: =OFFSET(PO!$P$12,ROW($E52)-ROW(F$12),0) -> 596.66
A53: =OFFSET(PO!J$12,ROW(A53)-ROW($A$12),0) -> Serviço | B53: =IF($A53=0,"",OFFSET(PO!K$12,ROW(B53)-ROW(B$12),0)) -> 1.1.7.3. | C53: =IF(OFFSET(PO!N$12,ROW(C53)-ROW(C$12),0)=0,"",OFFSET(PO!N$12,ROW(C53)-ROW(C$12),0)) -> Placa de aço esmaltada para a identificação de Rua 45 cm x 20 cm | D53: =IF(OFFSET(PO!O$12,ROW(D53)-ROW(D$12),0)=0,"",OFFSET(PO!O$12,ROW(D53)-ROW(D$12),0)) -> und | E53: =IF($A53<>"Serviço",0,ROUND(SUMIF($F$9:$P$9,"<>",$F53:$P53),15-13*PO!$X$3)) -> 2 | F53: =OFFSET(PO!$P$12,ROW($E53)-ROW(F$12),0) -> 2
A54: =OFFSET(PO!J$12,ROW(A54)-ROW($A$12),0) -> Serviço | B54: =IF($A54=0,"",OFFSET(PO!K$12,ROW(B54)-ROW(B$12),0)) -> 1.1.7.4. | C54: =IF(OFFSET(PO!N$12,ROW(C54)-ROW(C$12),0)=0,"",OFFSET(PO!N$12,ROW(C54)-ROW(C$12),0)) -> Plaça de sinalização em chapa de aço tot. pintura refletiva | D54: =IF(OFFSET(PO!O$12,ROW(D54)-ROW(D$12),0)=0,"",OFFSET(PO!O$12,ROW(D54)-ROW(D$12),0)) -> m² | E54: =IF($A54<>"Serviço",0,ROUND(SUMIF($F$9:$P$9,"<>",$F54:$P54),15-13*PO!$X$3)) -> 0 | F54: 0
A55: =OFFSET(PO!J$12,ROW(A55)-ROW($A$12),0) -> Serviço | B55: =IF($A55=0,"",OFFSET(PO!K$12,ROW(B55)-ROW(B$12),0)) -> 1.1.7.5. | C55: =IF(OFFSET(PO!N$12,ROW(C55)-ROW(C$12),0)=0,"",OFFSET(PO!N$12,ROW(C55)-ROW(C$12),0)) -> Tubo de aço galvanizado c/ costura DN 2 1/2" (65mm), E=3,35 mm | D55: =IF(OFFSET(PO!O$12,ROW(D55)-ROW(D$12),0)=0,"",OFFSET(PO!O$12,ROW(D55)-ROW(D$12),0)) -> m | E55: =IF($A55<>"Serviço",0,ROUND(SUMIF($F$9:$P$9,"<>",$F55:$P55),15-13*PO!$X$3)) -> 0 | F55: 0
A56: =OFFSET(PO!J$12,ROW(A56)-ROW($A$12),0) -> Nível 3 | B56: =IF($A56=0,"",OFFSET(PO!K$12,ROW(B56)-ROW(B$12),0)) -> 1.1.8. | C56: =IF(OFFSET(PO!N$12,ROW(C56)-ROW(C$12),0)=0,"",OFFSET(PO!N$12,ROW(C56)-ROW(C$12),0)) -> SERVIÇOS COMPLEMENTARES - LIMPEZA FINAL DA OBRA | D56: =IF(OFFSET(PO!O$12,ROW(D56)-ROW(D$12),0)=0,"",OFFSET(PO!O$12,ROW(D56)-ROW(D$12),0)) ->  | E56: =IF($A56<>"Serviço",0,ROUND(SUMIF($F$9:$P$9,"<>",$F56:$P56),15-13*PO!$X$3)) -> 0 | F56: 0
A57: =OFFSET(PO!J$12,ROW(A57)-ROW($A$12),0) -> Serviço | B57: =IF($A57=0,"",OFFSET(PO!K$12,ROW(B57)-ROW(B$12),0)) -> 1.1.8.1. | C57: =IF(OFFSET(PO!N$12,ROW(C57)-ROW(C$12),0)=0,"",OFFSET(PO!N$12,ROW(C57)-ROW(C$12),0)) -> Caminhão Pipa 10.000L, peso bruto total de 23.000 kg, inclusive tanque de aço para o transporte de água, capacidade de 10 m³ | D57: =IF(OFFSET(PO!O$12,ROW(D57)-ROW(D$12),0)=0,"",OFFSET(PO!O$12,ROW(D57)-ROW(D$12),0)) -> h | E57: =IF($A57<>"Serviço",0,ROUND(SUMIF($F$9:$P$9,"<>",$F57:$P57),15-13*PO!$X$3)) -> 0 | F57: 0
B60: =PO!$K$69 -> Tunápolis/SC
B61: Local
B63: =PO!$K$72 -> 2022-04-11
B64: Data

Sheet CFF
O1: CFF - | P1: CRONOGRAMA FÍSICO-FINANCEIRO
P2: =CHOOSE(1+LOG(1+2*(TipoOrçamento="BASE")+4*(TipoOrçamento="LICITADO")+8*(TipoOrçamento="REPROGRAMADOAC")+16*(TipoOrçamento="REPROGRAMADONPL"),2),"nada","Cronograma Base para Licitação","Cronograma Licitado","Cronograma Licitado Reprogramado","Cronograma Base para Licitação - Reprogramado") -> Cronograma Base para Licitação
A8: Nível Máx Crono | L8: =IF(MAX($A$14:$A$49)<>MAX(PO!$V$12:$V$58),"ERRO: CRONOGRAMA DESATUALIZADO",IF(OR(COUNTIF($O$16:$X$16,">1")>0,OFFSET($X$17,0,-1)<>$N$14),"ERRO: CRONOGRAMA NÃO FECHA EM 100%","")) ->  | N8: =IF(TipoOrçamento="REPROGRAMADOAC","Qtde de Medições realizadas","") -> 
A9: 3 | N9: 1 | O9: =IF(AND(TipoOrçamento="REPROGRAMADOAC",$N$9>0),$N$9-1,0) -> 0 | P9: =OFFSET(P9,0,-1)+1 -> 1 | Q9: 2 | R9: 3 | S9: 4 | T9: 5 | U9: 6 | V9: 7 | W9: 8 | AC9: =OFFSET(AC9,0,-1)+1 -> 1
A10: Lista Crono | B10: Último Nível | C10: Nível | D10: Altura | E10: N1 | F10: N2 | G10: N3 | H10: N4 | I10: Czero | J10: Cnível | K10: VTOTAL SOMA | L10: Item | M10: Descrição das Metas / Macrosserviços | N10: Valores Totais (R$) | O10: =IF(TipoOrçamento="REPROGRAMADOAC","Reinício de Obra","Início de Obra")&CHAR(10)&TEXT(DADOS!A48,"dd/mm/aa") -> Início de Obra 11/04/22 | P10: =IF(AND(TipoOrçamento="REPROGRAMADOAC",$N$9>0,N10="Valores Totais (R$)"),"Parcela "&$N$9&" Executado","Parcela "&P$9&CHAR(10)&TEXT(DATE(YEAR(DADOS!$A$48),MONTH(DADOS!$A$48)+P$9-IF(AND(TipoOrçamento="REPROGRAMADOAC",$N$9>0),$N$9,0),1),"mmm/aa")) -> Parcela 1 mai/22 | Q10: =IF(AND(TipoOrçamento="REPROGRAMADOAC",$N$9>0,O10="Valores Totais (R$)"),"Parcela "&$N$9&" Executado","Parcela "&Q$9&CHAR(10)&TEXT(DATE(YEAR(DADOS!$A$48),MONTH(DADOS!$A$48)+Q$9-IF(AND(TipoOrçamento="REPROGRAMADOAC",$N$9>0),$N$9,0),1),"mmm/aa")) -> Parcela 2 jun/22 | R10: =IF(AND(TipoOrçamento="REPROGRAMADOAC",$N$9>0,P10="Valores Totais (R$)"),"Parcela "&$N$9&" Executado","Parcela "&R$9&CHAR(10)&TEXT(DATE(YEAR(DADOS!$A$48),MONTH(DADOS!$A$48)+R$9-IF(AND(TipoOrçamento="REPROGRAMADOAC",$N$9>0),$N$9,0),1),"mmm/aa")) -> Parcela 3 jul/22 | S10: =IF(AND(TipoOrçamento="REPROGRAMADOAC",$N$9>0,Q10="Valores Totais (R$)"),"Parcela "&$N$9&" Executado","Parcela "&S$9&CHAR(10)&TEXT(DATE(YEAR(DADOS!$A$48),MONTH(DADOS!$A$48)+S$9-IF(AND(TipoOrçamento="REPROGRAMADOAC",$N$9>0),$N$9,0),1),"mmm/aa")) -> Parcela 4 ago/22 | T10: =IF(AND(TipoOrçamento="REPROGRAMADOAC",$N$9>0,R10="Valores Totais (R$)"),"Parcela "&$N$9&" Executado","Parcela "&T$9&CHAR(10)&TEXT(DATE(YEAR(DADOS!$A$48),MONTH(DADOS!$A$48)+T$9-IF(AND(TipoOrçamento="REPROGRAMADOAC",$N$9>0),$N$9,0),1),"mmm/aa")) -> Parcela 5 set/22 | U10: =IF(AND(TipoOrçamento="REPROGRAMADOAC",$N$9>0,S10="Valores Totais (R$)"),"Parcela "&$N$9&" Executado","Parcela "&U$9&CHAR(10)&TEXT(DATE(YEAR(DADOS!$A$48),MONTH(DADOS!$A$48)+U$9-IF(AND(TipoOrçamento="REPROGRAMADOAC",$N$9>0),$N$9,0),1),"mmm/aa")) -> Parcela 6 out/22 | V10: =IF(AND(TipoOrçamento="REPROGRAMADOAC",$N$9>0,T10="Valores Totais (R$)"),"Parcela "&$N$9&" Executado","Parcela "&V$9&CHAR(10)&TEXT(DATE(YEAR(DADOS!$A$48),MONTH(DADOS!$A$48)+V$9-IF(AND(TipoOrçamento="REPROGRAMADOAC",$N$9>0),$N$9,0),1),"mmm/aa")) -> Parcela 7 nov/22 | W10: =IF(AND(TipoOrçamento="REPROGRAMADOAC",$N$9>0,U10="Valores Totais (R$)"),"Parcela "&$N$9&" Executado","Parcela "&W$9&CHAR(10)&TEXT(DATE(YEAR(DADOS!$A$48),MONTH(DADOS!$A$48)+W$9-IF(AND(TipoOrçamento="REPROGRAMADOAC",$N$9>0),$N$9,0),1),"mmm/aa")) -> Parcela 8 dez/22 | AC10: =IF(AND(TipoOrçamento="REPROGRAMADOAC",$N$9>0,AA10="Valores Totais (R$)"),"Parcela "&$N$9&" Executado","Parcela "&AC$9&CHAR(10)&TEXT(DATE(YEAR(DADOS!$A$48),MONTH(DADOS!$A$48)+AC$9-IF(AND(TipoOrçamento="REPROGRAMADOAC",$N$9>0),$N$9,0),1),"mmm/aa")) -> Parcela 1 mai/22
L11: =INDEX(PO!K$12:K$58,MATCH($A13,PO!$V$12:$V$58,0)) ->  | M11: =INDEX(PO!N$12:N$58,MATCH($A13,PO!$V$12:$V$58,0)) ->  | N11: =IF(ROUND(K13,2)=0,K13,ROUND(K13,2)) ->  | O11: Parcela (%) | P11: =IF($B13,0,P12-IF(ISNUMBER(O12),O12,0)) ->  | Q11: =IF($B13,0,Q12-IF(ISNUMBER(P12),P12,0)) ->  | AC11: =IF($B13,0,AC12-IF(ISNUMBER(AB12),AB12,0)) -> 
O12: Acumulado (%) | P12: =MIN(IF($B13,P11+IF(ISNUMBER(O12),O12,0),P13/$N11),1) ->  | Q12: =MIN(IF($B13,Q11+IF(ISNUMBER(P12),P12,0),Q13/$N11),1) ->  | AC12: =MIN(IF($B13,AC11+IF(ISNUMBER(AB12),AB12,0),AC13/$N11),1) -> 
A13: =OFFSET(A13,-CFF.NumLinha,0)+1 ->  | B13: =$C13>=OFFSET($C13,CFF.NumLinha,0) ->  | C13: =INDEX(PO!A$12:A$58,MATCH($A13,PO!$V$12:$V$58,0)) ->  | D13: =IF(ISERROR(J13),I13,SMALL(I13:J13,1))-1 ->  | E13: =IF($C13=1,OFFSET(E13,-CFF.NumLinha,0)+1,OFFSET(E13,-CFF.NumLinha,0)) ->  | F13: =IF($C13=1,0,IF($C13=2,OFFSET(F13,-CFF.NumLinha,0)+1,OFFSET(F13,-CFF.NumLinha,0))) ->  | G13: =IF(AND($C13<=2,$C13<>0),0,IF($C13=3,OFFSET(G13,-CFF.NumLinha,0)+1,OFFSET(G13,-CFF.NumLinha,0))) ->  | H13: =IF(AND($C13<=3,$C13<>0),0,IF($C13=4,OFFSET(H13,-CFF.NumLinha,0)+1,OFFSET(H13,-CFF.NumLinha,0))) ->  | I13: =MATCH(0,OFFSET($D13,1,$C13,ROW($A$48)-ROW($A13)),0) ->  | J13: =MATCH(OFFSET($D13,0,$C13)+1,OFFSET($D13,1,$C13,ROW($A$48)-ROW($A13)),0) ->  | K13: =ROUND(INDEX(PO!T$12:T$58,MATCH($A13,PO!$V$12:$V$58,0)),2)+10^-12 ->  | O13: Acumulado (R$) | P13: =IF($B13,ROUND(P12*$N11,2),ROUND(SUMIF(OFFSET($B13,1,0,$D13),TRUE,OFFSET(P13,1,0,$D13))/SUMIF(OFFSET($B13,1,0,$D13),TRUE,OFFSET($K13,1,0,$D13))*$N11,2)) ->  | Q13: =IF($B13,ROUND(Q12*$N11,2),ROUND(SUMIF(OFFSET($B13,1,0,$D13),TRUE,OFFSET(Q13,1,0,$D13))/SUMIF(OFFSET($B13,1,0,$D13),TRUE,OFFSET($K13,1,0,$D13))*$N11,2)) ->  | AC13: =IF($B13,ROUND(AC12*$N11,2),ROUND(SUMIF(OFFSET($B13,1,0,$D13),TRUE,OFFSET(AC13,1,0,$D13))/SUMIF(OFFSET($B13,1,0,$D13),TRUE,OFFSET($K13,1,0,$D13))*$N11,2)) -> 
L14: CRONOGRAMA GLOBAL DO LOTE | N14: =IF(PO!$T$12=0,10^-12,PO!$T$12) -> 489719.26 | O14: Parcela (%) | P14: =ROUND(P15/$N14,4) -> 0.0973 | Q14: =ROUND(Q15/$N14,4) -> 0.2359 | R14: 0.1754 | S14: 0.3702 | T14: 0.0588 | U14: 0.0624 | V14: 0 | W14: 0 | AC14: =ROUND(AC15/$N14,4) -> 0
O15: Parcela (R$) | P15: =P17-IF(ISNUMBER(O17),O17,0) -> 47634.37 | Q15: =Q17-IF(ISNUMBER(P17),P17,0) -> 115538.21 | R15: 85900.15 | S15: 181311.98 | T15: 28792.79 | U15: 30541.76 | V15: 0 | W15: 0 | AC15: =AC17-IF(ISNUMBER(AB17),AB17,0) -> 0
O16: Acumulado (%) | P16: =ROUND(P17/$N14,4) -> 0.0973 | Q16: =ROUND(Q17/$N14,4) -> 0.3332 | R16: 0.5086 | S16: 0.8788 | T16: 0.9376 | U16: 1 | V16: 1 | W16: 1 | AC16: =ROUND(AC17/$N14,4) -> 0
A17: 0 | D17: =ROW(D$48)-ROW(D18) -> 30 | O17: Acumulado (R$) | P17: =SUMIF(OFFSET($C17,1,0):$C$48,1,OFFSET(P17,1,0):P$48) -> 47634.37 | Q17: =SUMIF(OFFSET($C17,1,0):$C$48,1,OFFSET(Q17,1,0):Q$48) -> 163172.58 | R17: =SUMIF(OFFSET($C17,1,0):$C$48,1,OFFSET(R17,1,0):R$48) -> 249072.73 | S17: =SUMIF(OFFSET($C17,1,0):$C$48,1,OFFSET(S17,1,0):S$48) -> 430384.71 | T17: =SUMIF(OFFSET($C17,1,0):$C$48,1,OFFSET(T17,1,0):T$48) -> 459177.5 | U17: =SUMIF(OFFSET($C17,1,0):$C$48,1,OFFSET(U17,1,0):U$48) -> 489719.26 | V17: =SUMIF(OFFSET($C17,1,0):$C$48,1,OFFSET(V17,1,0):V$48) -> 489719.26 | W17: =SUMIF(OFFSET($C17,1,0):$C$48,1,OFFSET(W17,1,0):W$48) -> 489719.26 | AC17: =SUMIF(OFFSET($C17,1,0):$C$48,1,OFFSET(AC17,1,0):AC$48) -> 0
L18: =INDEX(PO!K$12:K$58,MATCH($A20,PO!$V$12:$V$58,0)) -> 1. | M18: =INDEX(PO!N$12:N$58,MATCH($A20,PO!$V$12:$V$58,0)) -> PAVIMENTAÇÃO ASFÁLTICA | N18: =IF(ROUND(K20,2)=0,K20,ROUND(K20,2)) -> 489719.26 | O18: Parcela (%) | P18: =IF($B20,0,P19-IF(ISNUMBER(O19),O19,0)) -> 0.09726872903 | Q18: 0.2359274373 | R18: 0.175406926 | S18: 0.3702365719 | T18: 0.05879448156 | U18: 0.06236585427 | V18: 0 | W18: 0 | AC18: =IF($B20,0,AC19-IF(ISNUMBER(AB19),AB19,0)) -> 0
O19: Acumulado (%) | P19: =MIN(IF($B20,P18+IF(ISNUMBER(O19),O19,0),P20/$N18),1) -> 0.09726872903 | Q19: 0.3331961663 | R19: 0.5086030923 | S19: 0.8788396642 | T19: 0.9376341457 | U19: 1 | V19: 1 | W19: 1 | AC19: =MIN(IF($B20,AC18+IF(ISNUMBER(AB19),AB19,0),AC20/$N18),1) -> 0
A20: =OFFSET(A20,-CFF.NumLinha,0)+1 -> 1 | B20: =$C20>=OFFSET($C20,CFF.NumLinha,0) -> FALSE | C20: =INDEX(PO!A$12:A$58,MATCH($A20,PO!$V$12:$V$58,0)) -> 1 | D20: =IF(ISERROR(J20),I20,SMALL(I20:J20,1))-1 -> 27 | E20: =IF($C20=1,OFFSET(E20,-CFF.NumLinha,0)+1,OFFSET(E20,-CFF.NumLinha,0)) -> 1 | F20: =IF($C20=1,0,IF($C20=2,OFFSET(F20,-CFF.NumLinha,0)+1,OFFSET(F20,-CFF.NumLinha,0))) -> 0 | G20: =IF(AND($C20<=2,$C20<>0),0,IF($C20=3,OFFSET(G20,-CFF.NumLinha,0)+1,OFFSET(G20,-CFF.NumLinha,0))) -> 0 | H20: =IF(AND($C20<=3,$C20<>0),0,IF($C20=4,OFFSET(H20,-CFF.NumLinha,0)+1,OFFSET(H20,-CFF.NumLinha,0))) -> 0 | I20: =MATCH(0,OFFSET($D20,1,$C20,ROW($A$48)-ROW($A20)),0) -> 28 | J20: =MATCH(OFFSET($D20,0,$C20)+1,OFFSET($D20,1,$C20,ROW($A$48)-ROW($A20)),0) ->  | K20: =ROUND(INDEX(PO!T$12:T$58,MATCH($A20,PO!$V$12:$V$58,0)),2)+10^-12 -> 489719.26 | O20: Acumulado (R$) | P20: =IF($B20,ROUND(P19*$N18,2),ROUND(SUMIF(OFFSET($B20,1,0,$D20),TRUE,OFFSET(P20,1,0,$D20))/SUMIF(OFFSET($B20,1,0,$D20),TRUE,OFFSET($K20,1,0,$D20))*$N18,2)) -> 47634.37 | Q20: 163172.58 | R20: 249072.73 | S20: 430384.71 | T20: 459177.5 | U20: 489719.26 | V20: 489719.26 | W20: 489719.26 | AC20: =IF($B20,ROUND(AC19*$N18,2),ROUND(SUMIF(OFFSET($B20,1,0,$D20),TRUE,OFFSET(AC20,1,0,$D20))/SUMIF(OFFSET($B20,1,0,$D20),TRUE,OFFSET($K20,1,0,$D20))*$N18,2)) -> 0
L21: =INDEX(PO!K$12:K$58,MATCH($A23,PO!$V$12:$V$58,0)) -> 1.1. | M21: =INDEX(PO!N$12:N$58,MATCH($A23,PO!$V$12:$V$58,0)) -> RUAS FELIPE ARSÊNIO BAMBERG E AMELDA TEREZA BIEGER | N21: =IF(ROUND(K23,2)=0,K23,ROUND(K23,2)) -> 489719.26 | O21: Parcela (%) | P21: =IF($B23,0,P22-IF(ISNUMBER(O22),O22,0)) -> 0.09726872903 | Q21: =IF($B23,0,Q22-IF(ISNUMBER(P22),P22,0)) -> 0.2359274373 | R21: =IF($B23,0,R22-IF(ISNUMBER(Q22),Q22,0)) -> 0.175406926 | S21: =IF($B23,0,S22-IF(ISNUMBER(R22),R22,0)) -> 0.3702365719 | T21: =IF($B23,0,T22-IF(ISNUMBER(S22),S22,0)) -> 0.05879448156 | U21: =IF($B23,0,U22-IF(ISNUMBER(T22),T22,0)) -> 0.06236585427 | V21: =IF($B23,0,V22-IF(ISNUMBER(U22),U22,0)) -> 0 | W21: =IF($B23,0,W22-IF(ISNUMBER(V22),V22,0)) -> 0 | AC21: =IF($B23,0,AC22-IF(ISNUMBER(AB22),AB22,0)) -> 0
O22: Acumulado (%) | P22: =MIN(IF($B23,P21+IF(ISNUMBER(O22),O22,0),P23/$N21),1) -> 0.09726872903 | Q22: =MIN(IF($B23,Q21+IF(ISNUMBER(P22),P22,0),Q23/$N21),1) -> 0.3331961663 | R22: =MIN(IF($B23,R21+IF(ISNUMBER(Q22),Q22,0),R23/$N21),1) -> 0.5086030923 | S22: =MIN(IF($B23,S21+IF(ISNUMBER(R22),R22,0),S23/$N21),1) -> 0.8788396642 | T22: =MIN(IF($B23,T21+IF(ISNUMBER(S22),S22,0),T23/$N21),1) -> 0.9376341457 | U22: =MIN(IF($B23,U21+IF(ISNUMBER(T22),T22,0),U23/$N21),1) -> 1 | V22: =MIN(IF($B23,V21+IF(ISNUMBER(U22),U22,0),V23/$N21),1) -> 1 | W22: =MIN(IF($B23,W21+IF(ISNUMBER(V22),V22,0),W23/$N21),1) -> 1 | AC22: =MIN(IF($B23,AC21+IF(ISNUMBER(AB22),AB22,0),AC23/$N21),1) -> 0
A23: =OFFSET(A23,-CFF.NumLinha,0)+1 -> 2 | B23: =$C23>=OFFSET($C23,CFF.NumLinha,0) -> FALSE | C23: =INDEX(PO!A$12:A$58,MATCH($A23,PO!$V$12:$V$58,0)) -> 2 | D23: =IF(ISERROR(J23),I23,SMALL(I23:J23,1))-1 -> 24 | E23: =IF($C23=1,OFFSET(E23,-CFF.NumLinha,0)+1,OFFSET(E23,-CFF.NumLinha,0)) -> 1 | F23: =IF($C23=1,0,IF($C23=2,OFFSET(F23,-CFF.NumLinha,0)+1,OFFSET(F23,-CFF.NumLinha,0))) -> 1 | G23: =IF(AND($C23<=2,$C23<>0),0,IF($C23=3,OFFSET(G23,-CFF.NumLinha,0)+1,OFFSET(G23,-CFF.NumLinha,0))) -> 0 | H23: =IF(AND($C23<=3,$C23<>0),0,IF($C23=4,OFFSET(H23,-CFF.NumLinha,0)+1,OFFSET(H23,-CFF.NumLinha,0))) -> 0 | I23: =MATCH(0,OFFSET($D23,1,$C23,ROW($A$48)-ROW($A23)),0) -> 25 | J23: =MATCH(OFFSET($D23,0,$C23)+1,OFFSET($D23,1,$C23,ROW($A$48)-ROW($A23)),0) ->  | K23: =ROUND(INDEX(PO!T$12:T$58,MATCH($A23,PO!$V$12:$V$58,0)),2)+10^-12 -> 489719.26 | O23: Acumulado (R$) | P23: =IF($B23,ROUND(P22*$N21,2),ROUND(SUMIF(OFFSET($B23,1,0,$D23),TRUE,OFFSET(P23,1,0,$D23))/SUMIF(OFFSET($B23,1,0,$D23),TRUE,OFFSET($K23,1,0,$D23))*$N21,2)) -> 47634.37 | Q23: 163172.58 | R23: 249072.73 | S23: 430384.71 | T23: 459177.5 | U23: 489719.26 | V23: 489719.26 | W23: 489719.26 | AC23: =IF($B23,ROUND(AC22*$N21,2),ROUND(SUMIF(OFFSET($B23,1,0,$D23),TRUE,OFFSET(AC23,1,0,$D23))/SUMIF(OFFSET($B23,1,0,$D23),TRUE,OFFSET($K23,1,0,$D23))*$N21,2)) -> 0
L24: =INDEX(PO!K$12:K$58,MATCH($A26,PO!$V$12:$V$58,0)) -> 1.1.1. | M24: =INDEX(PO!N$12:N$58,MATCH($A26,PO!$V$12:$V$58,0)) -> SERVIÇOS PRELIMINARES | N24: =IF(ROUND(K26,2)=0,K26,ROUND(K26,2)) -> 5913.39 | O24: Parcela (%) | P24: 1 | Q24: 0.05 | R24: 0.05 | S24: 0.05 | T24: 0.05 | U24: 0.05 | V24: =IF($B26,0,V25-IF(ISNUMBER(U25),U25,0)) -> 0 | W24: =IF($B26,0,W25-IF(ISNUMBER(V25),V25,0)) -> 0 | AC24: =IF($B26,0,AC25-IF(ISNUMBER(AB25),AB25,0)) -> 0
O25: Acumulado (%) | P25: =MIN(IF($B26,P24+IF(ISNUMBER(O25),O25,0),P26/$N24),1) -> 1 | Q25: =MIN(IF($B26,Q24+IF(ISNUMBER(P25),P25,0),Q26/$N24),1) -> 1 | R25: =MIN(IF($B26,R24+IF(ISNUMBER(Q25),Q25,0),R26/$N24),1) -> 1 | S25: =MIN(IF($B26,S24+IF(ISNUMBER(R25),R25,0),S26/$N24),1) -> 1 | T25: =MIN(IF($B26,T24+IF(ISNUMBER(S25),S25,0),T26/$N24),1) -> 1 | U25: =MIN(IF($B26,U24+IF(ISNUMBER(T25),T25,0),U26/$N24),1) -> 1 | V25: =MIN(IF($B26,V24+IF(ISNUMBER(U25),U25,0),V26/$N24),1) -> 1 | W25: =MIN(IF($B26,W24+IF(ISNUMBER(V25),V25,0),W26/$N24),1) -> 1 | AC25: =MIN(IF($B26,AC24+IF(ISNUMBER(AB25),AB25,0),AC26/$N24),1) -> 0
A26: =OFFSET(A26,-CFF.NumLinha,0)+1 -> 3 | B26: =$C26>=OFFSET($C26,CFF.NumLinha,0) -> TRUE | C26: =INDEX(PO!A$12:A$58,MATCH($A26,PO!$V$12:$V$58,0)) -> 3 | D26: =IF(ISERROR(J26),I26,SMALL(I26:J26,1))-1 -> 2 | E26: =IF($C26=1,OFFSET(E26,-CFF.NumLinha,0)+1,OFFSET(E26,-CFF.NumLinha,0)) -> 1 | F26: =IF($C26=1,0,IF($C26=2,OFFSET(F26,-CFF.NumLinha,0)+1,OFFSET(F26,-CFF.NumLinha,0))) -> 1 | G26: =IF(AND($C26<=2,$C26<>0),0,IF($C26=3,OFFSET(G26,-CFF.NumLinha,0)+1,OFFSET(G26,-CFF.NumLinha,0))) -> 1 | H26: =IF(AND($C26<=3,$C26<>0),0,IF($C26=4,OFFSET(H26,-CFF.NumLinha,0)+1,OFFSET(H26,-CFF.NumLinha,0))) -> 0 | I26: =MATCH(0,OFFSET($D26,1,$C26,ROW($A$48)-ROW($A26)),0) -> 22 | J26: =MATCH(OFFSET($D26,0,$C26)+1,OFFSET($D26,1,$C26,ROW($A$48)-ROW($A26)),0) -> 3 | K26: =ROUND(INDEX(PO!T$12:T$58,MATCH($A26,PO!$V$12:$V$58,0)),2)+10^-12 -> 5913.39 | O26: Acumulado (R$) | P26: =IF($B26,ROUND(P25*$N24,2),ROUND(SUMIF(OFFSET($B26,1,0,$D26),TRUE,OFFSET(P26,1,0,$D26))/SUMIF(OFFSET($B26,1,0,$D26),TRUE,OFFSET($K26,1,0,$D26))*$N24,2)) -> 5913.39 | Q26: 5913.39 | R26: 5913.39 | S26: 5913.39 | T26: 5913.39 | U26: 5913.39 | V26: 5913.39 | W26: 5913.39 | AC26: =IF($B26,ROUND(AC25*$N24,2),ROUND(SUMIF(OFFSET($B26,1,0,$D26),TRUE,OFFSET(AC26,1,0,$D26))/SUMIF(OFFSET($B26,1,0,$D26),TRUE,OFFSET($K26,1,0,$D26))*$N24,2)) -> 0
L27: =INDEX(PO!K$12:K$58,MATCH($A29,PO!$V$12:$V$58,0)) -> 1.1.2. | M27: =INDEX(PO!N$12:N$58,MATCH($A29,PO!$V$12:$V$58,0)) -> DRENAGEM E RECOMPOSIÇÃO DE PAVIMENTO | N27: =IF(ROUND(K29,2)=0,K29,ROUND(K29,2)) -> 83441.95 | O27: Parcela (%) | P27: 0.5 | Q27: 0.5 | R27: 0 | S27: =IF($B29,0,S28-IF(ISNUMBER(R28),R28,0)) -> 0 | T27: =IF($B29,0,T28-IF(ISNUMBER(S28),S28,0)) -> 0 | U27: =IF($B29,0,U28-IF(ISNUMBER(T28),T28,0)) -> 0 | V27: =IF($B29,0,V28-IF(ISNUMBER(U28),U28,0)) -> 0 | W27: =IF($B29,0,W28-IF(ISNUMBER(V28),V28,0)) -> 0 | AC27: =IF($B29,0,AC28-IF(ISNUMBER(AB28),AB28,0)) -> 0
O28: Acumulado (%) | P28: =MIN(IF($B29,P27+IF(ISNUMBER(O28),O28,0),P29/$N27),1) -> 0.5 | Q28: =MIN(IF($B29,Q27+IF(ISNUMBER(P28),P28,0),Q29/$N27),1) -> 1 | R28: =MIN(IF($B29,R27+IF(ISNUMBER(Q28),Q28,0),R29/$N27),1) -> 1 | S28: =MIN(IF($B29,S27+IF(ISNUMBER(R28),R28,0),S29/$N27),1) -> 1 | T28: =MIN(IF($B29,T27+IF(ISNUMBER(S28),S28,0),T29/$N27),1) -> 1 | U28: =MIN(IF($B29,U27+IF(ISNUMBER(T28),T28,0),U29/$N27),1) -> 1 | V28: =MIN(IF($B29,V27+IF(ISNUMBER(U28),U28,0),V29/$N27),1) -> 1 | W28: =MIN(IF($B29,W27+IF(ISNUMBER(V28),V28,0),W29/$N27),1) -> 1 | AC28: =MIN(IF($B29,AC27+IF(ISNUMBER(AB28),AB28,0),AC29/$N27),1) -> 0
A29: =OFFSET(A29,-CFF.NumLinha,0)+1 -> 4 | B29: =$C29>=OFFSET($C29,CFF.NumLinha,0) -> TRUE | C29: =INDEX(PO!A$12:A$58,MATCH($A29,PO!$V$12:$V$58,0)) -> 3 | D29: =IF(ISERROR(J29),I29,SMALL(I29:J29,1))-1 -> 2 | E29: =IF($C29=1,OFFSET(E29,-CFF.NumLinha,0)+1,OFFSET(E29,-CFF.NumLinha,0)) -> 1 | F29: =IF($C29=1,0,IF($C29=2,OFFSET(F29,-CFF.NumLinha,0)+1,OFFSET(F29,-CFF.NumLinha,0))) -> 1 | G29: =IF(AND($C29<=2,$C29<>0),0,IF($C29=3,OFFSET(G29,-CFF.NumLinha,0)+1,OFFSET(G29,-CFF.NumLinha,0))) -> 2 | H29: =IF(AND($C29<=3,$C29<>0),0,IF($C29=4,OFFSET(H29,-CFF.NumLinha,0)+1,OFFSET(H29,-CFF.NumLinha,0))) -> 0 | I29: =MATCH(0,OFFSET($D29,1,$C29,ROW($A$48)-ROW($A29)),0) -> 19 | J29: =MATCH(OFFSET($D29,0,$C29)+1,OFFSET($D29,1,$C29,ROW($A$48)-ROW($A29)),0) -> 3 | K29: =ROUND(INDEX(PO!T$12:T$58,MATCH($A29,PO!$V$12:$V$58,0)),2)+10^-12 -> 83441.95 | O29: Acumulado (R$) | P29: =IF($B29,ROUND(P28*$N27,2),ROUND(SUMIF(OFFSET($B29,1,0,$D29),TRUE,OFFSET(P29,1,0,$D29))/SUMIF(OFFSET($B29,1,0,$D29),TRUE,OFFSET($K29,1,0,$D29))*$N27,2)) -> 41720.98 | Q29: 83441.95 | R29: 83441.95 | S29: 83441.95 | T29: 83441.95 | U29: 83441.95 | V29: 83441.95 | W29: 83441.95 | AC29: =IF($B29,ROUND(AC28*$N27,2),ROUND(SUMIF(OFFSET($B29,1,0,$D29),TRUE,OFFSET(AC29,1,0,$D29))/SUMIF(OFFSET($B29,1,0,$D29),TRUE,OFFSET($K29,1,0,$D29))*$N27,2)) -> 0
L30: =INDEX(PO!K$12:K$58,MATCH($A32,PO!$V$12:$V$58,0)) -> 1.1.3. | M30: =INDEX(PO!N$12:N$58,MATCH($A32,PO!$V$12:$V$58,0)) -> MEIOS - FIOS | N30: =IF(ROUND(K32,2)=0,K32,ROUND(K32,2)) -> 24165.81 | O30: Parcela (%) | P30: 0 | Q30: 0 | R30: 0.5 | S30: 0.5 | T30: =IF($B32,0,T31-IF(ISNUMBER(S31),S31,0)) -> 0 | U30: =IF($B32,0,U31-IF(ISNUMBER(T31),T31,0)) -> 0 | V30: =IF($B32,0,V31-IF(ISNUMBER(U31),U31,0)) -> 0 | W30: =IF($B32,0,W31-IF(ISNUMBER(V31),V31,0)) -> 0 | AC30: =IF($B32,0,AC31-IF(ISNUMBER(AB31),AB31,0)) -> 0
O31: Acumulado (%) | P31: =MIN(IF($B32,P30+IF(ISNUMBER(O31),O31,0),P32/$N30),1) -> 0 | Q31: =MIN(IF($B32,Q30+IF(ISNUMBER(P31),P31,0),Q32/$N30),1) -> 0 | R31: =MIN(IF($B32,R30+IF(ISNUMBER(Q31),Q31,0),R32/$N30),1) -> 0.5 | S31: =MIN(IF($B32,S30+IF(ISNUMBER(R31),R31,0),S32/$N30),1) -> 1 | T31: =MIN(IF($B32,T30+IF(ISNUMBER(S31),S31,0),T32/$N30),1) -> 1 | U31: =MIN(IF($B32,U30+IF(ISNUMBER(T31),T31,0),U32/$N30),1) -> 1 | V31: =MIN(IF($B32,V30+IF(ISNUMBER(U31),U31,0),V32/$N30),1) -> 1 | W31: =MIN(IF($B32,W30+IF(ISNUMBER(V31),V31,0),W32/$N30),1) -> 1 | AC31: =MIN(IF($B32,AC30+IF(ISNUMBER(AB31),AB31,0),AC32/$N30),1) -> 0
A32: =OFFSET(A32,-CFF.NumLinha,0)+1 -> 5 | B32: =$C32>=OFFSET($C32,CFF.NumLinha,0) -> TRUE | C32: =INDEX(PO!A$12:A$58,MATCH($A32,PO!$V$12:$V$58,0)) -> 3 | D32: =IF(ISERROR(J32),I32,SMALL(I32:J32,1))-1 -> 2 | E32: =IF($C32=1,OFFSET(E32,-CFF.NumLinha,0)+1,OFFSET(E32,-CFF.NumLinha,0)) -> 1 | F32: =IF($C32=1,0,IF($C32=2,OFFSET(F32,-CFF.NumLinha,0)+1,OFFSET(F32,-CFF.NumLinha,0))) -> 1 | G32: =IF(AND($C32<=2,$C32<>0),0,IF($C32=3,OFFSET(G32,-CFF.NumLinha,0)+1,OFFSET(G32,-CFF.NumLinha,0))) -> 3 | H32: =IF(AND($C32<=3,$C32<>0),0,IF($C32=4,OFFSET(H32,-CFF.NumLinha,0)+1,OFFSET(H32,-CFF.NumLinha,0))) -> 0 | I32: =MATCH(0,OFFSET($D32,1,$C32,ROW($A$48)-ROW($A32)),0) -> 16 | J32: =MATCH(OFFSET($D32,0,$C32)+1,OFFSET($D32,1,$C32,ROW($A$48)-ROW($A32)),0) -> 3 | K32: =ROUND(INDEX(PO!T$12:T$58,MATCH($A32,PO!$V$12:$V$58,0)),2)+10^-12 -> 24165.81 | O32: Acumulado (R$) | P32: =IF($B32,ROUND(P31*$N30,2),ROUND(SUMIF(OFFSET($B32,1,0,$D32),TRUE,OFFSET(P32,1,0,$D32))/SUMIF(OFFSET($B32,1,0,$D32),TRUE,OFFSET($K32,1,0,$D32))*$N30,2)) -> 0 | Q32: 0 | R32: 12082.91 | S32: 24165.81 | T32: 24165.81 | U32: 24165.81 | V32: 24165.81 | W32: 24165.81 | AC32: =IF($B32,ROUND(AC31*$N30,2),ROUND(SUMIF(OFFSET($B32,1,0,$D32),TRUE,OFFSET(AC32,1,0,$D32))/SUMIF(OFFSET($B32,1,0,$D32),TRUE,OFFSET($K32,1,0,$D32))*$N30,2)) -> 0
L33: =INDEX(PO!K$12:K$58,MATCH($A35,PO!$V$12:$V$58,0)) -> 1.1.4. | M33: =INDEX(PO!N$12:N$58,MATCH($A35,PO!$V$12:$V$58,0)) -> PAVIMENTAÇÃO ASFÁLTICA SOBRE LEITO NATURAL | N33: =IF(ROUND(K35,2)=0,K35,ROUND(K35,2)) -> 295268.96 | O33: Parcela (%) | P33: 0 | Q33: 0.25 | R33: 0.25 | S33: 0.5 | T33: =IF($B35,0,T34-IF(ISNUMBER(S34),S34,0)) -> 0 | U33: =IF($B35,0,U34-IF(ISNUMBER(T34),T34,0)) -> 0 | V33: =IF($B35,0,V34-IF(ISNUMBER(U34),U34,0)) -> 0 | W33: =IF($B35,0,W34-IF(ISNUMBER(V34),V34,0)) -> 0 | AC33: =IF($B35,0,AC34-IF(ISNUMBER(AB34),AB34,0)) -> 0
O34: Acumulado (%) | P34: =MIN(IF($B35,P33+IF(ISNUMBER(O34),O34,0),P35/$N33),1) -> 0 | Q34: =MIN(IF($B35,Q33+IF(ISNUMBER(P34),P34,0),Q35/$N33),1) -> 0.25 | R34: =MIN(IF($B35,R33+IF(ISNUMBER(Q34),Q34,0),R35/$N33),1) -> 0.5 | S34: =MIN(IF($B35,S33+IF(ISNUMBER(R34),R34,0),S35/$N33),1) -> 1 | T34: =MIN(IF($B35,T33+IF(ISNUMBER(S34),S34,0),T35/$N33),1) -> 1 | U34: =MIN(IF($B35,U33+IF(ISNUMBER(T34),T34,0),U35/$N33),1) -> 1 | V34: =MIN(IF($B35,V33+IF(ISNUMBER(U34),U34,0),V35/$N33),1) -> 1 | W34: =MIN(IF($B35,W33+IF(ISNUMBER(V34),V34,0),W35/$N33),1) -> 1 | AC34: =MIN(IF($B35,AC33+IF(ISNUMBER(AB34),AB34,0),AC35/$N33),1) -> 0
A35: =OFFSET(A35,-CFF.NumLinha,0)+1 -> 6 | B35: =$C35>=OFFSET($C35,CFF.NumLinha,0) -> TRUE | C35: =INDEX(PO!A$12:A$58,MATCH($A35,PO!$V$12:$V$58,0)) -> 3 | D35: =IF(ISERROR(J35),I35,SMALL(I35:J35,1))-1 -> 2 | E35: =IF($C35=1,OFFSET(E35,-CFF.NumLinha,0)+1,OFFSET(E35,-CFF.NumLinha,0)) -> 1 | F35: =IF($C35=1,0,IF($C35=2,OFFSET(F35,-CFF.NumLinha,0)+1,OFFSET(F35,-CFF.NumLinha,0))) -> 1 | G35: =IF(AND($C35<=2,$C35<>0),0,IF($C35=3,OFFSET(G35,-CFF.NumLinha,0)+1,OFFSET(G35,-CFF.NumLinha,0))) -> 4 | H35: =IF(AND($C35<=3,$C35<>0),0,IF($C35=4,OFFSET(H35,-CFF.NumLinha,0)+1,OFFSET(H35,-CFF.NumLinha,0))) -> 0 | I35: =MATCH(0,OFFSET($D35,1,$C35,ROW($A$48)-ROW($A35)),0) -> 13 | J35: =MATCH(OFFSET($D35,0,$C35)+1,OFFSET($D35,1,$C35,ROW($A$48)-ROW($A35)),0) -> 3 | K35: =ROUND(INDEX(PO!T$12:T$58,MATCH($A35,PO!$V$12:$V$58,0)),2)+10^-12 -> 295268.96 | O35: Acumulado (R$) | P35: =IF($B35,ROUND(P34*$N33,2),ROUND(SUMIF(OFFSET($B35,1,0,$D35),TRUE,OFFSET(P35,1,0,$D35))/SUMIF(OFFSET($B35,1,0,$D35),TRUE,OFFSET($K35,1,0,$D35))*$N33,2)) -> 0 | Q35: 73817.24 | R35: 147634.48 | S35: 295268.96 | T35: 295268.96 | U35: 295268.96 | V35: 295268.96 | W35: 295268.96 | AC35: =IF($B35,ROUND(AC34*$N33,2),ROUND(SUMIF(OFFSET($B35,1,0,$D35),TRUE,OFFSET(AC35,1,0,$D35))/SUMIF(OFFSET($B35,1,0,$D35),TRUE,OFFSET($K35,1,0,$D35))*$N33,2)) -> 0
L36: =INDEX(PO!K$12:K$58,MATCH($A38,PO!$V$12:$V$58,0)) -> 1.1.5. | M36: =INDEX(PO!N$12:N$58,MATCH($A38,PO!$V$12:$V$58,0)) -> PASSEIOS | N36: =IF(ROUND(K38,2)=0,K38,ROUND(K38,2)) -> 55455.65 | O36: Parcela (%) | P36: 0 | Q36: 0 | R36: 0 | S36: 0.3 | T36: 0.4 | U36: 0.3 | V36: =IF($B38,0,V37-IF(ISNUMBER(U37),U37,0)) -> 0 | W36: =IF($B38,0,W37-IF(ISNUMBER(V37),V37,0)) -> 0 | AC36: =IF($B38,0,AC37-IF(ISNUMBER(AB37),AB37,0)) -> 0
O37: Acumulado (%) | P37: =MIN(IF($B38,P36+IF(ISNUMBER(O37),O37,0),P38/$N36),1) -> 0 | Q37: =MIN(IF($B38,Q36+IF(ISNUMBER(P37),P37,0),Q38/$N36),1) -> 0 | R37: =MIN(IF($B38,R36+IF(ISNUMBER(Q37),Q37,0),R38/$N36),1) -> 0 | S37: =MIN(IF($B38,S36+IF(ISNUMBER(R37),R37,0),S38/$N36),1) -> 0.3 | T37: =MIN(IF($B38,T36+IF(ISNUMBER(S37),S37,0),T38/$N36),1) -> 0.7 | U37: =MIN(IF($B38,U36+IF(ISNUMBER(T37),T37,0),U38/$N36),1) -> 1 | V37: =MIN(IF($B38,V36+IF(ISNUMBER(U37),U37,0),V38/$N36),1) -> 1 | W37: =MIN(IF($B38,W36+IF(ISNUMBER(V37),V37,0),W38/$N36),1) -> 1 | AC37: =MIN(IF($B38,AC36+IF(ISNUMBER(AB37),AB37,0),AC38/$N36),1) -> 0
A38: =OFFSET(A38,-CFF.NumLinha,0)+1 -> 7 | B38: =$C38>=OFFSET($C38,CFF.NumLinha,0) -> TRUE | C38: =INDEX(PO!A$12:A$58,MATCH($A38,PO!$V$12:$V$58,0)) -> 3 | D38: =IF(ISERROR(J38),I38,SMALL(I38:J38,1))-1 -> 2 | E38: =IF($C38=1,OFFSET(E38,-CFF.NumLinha,0)+1,OFFSET(E38,-CFF.NumLinha,0)) -> 1 | F38: =IF($C38=1,0,IF($C38=2,OFFSET(F38,-CFF.NumLinha,0)+1,OFFSET(F38,-CFF.NumLinha,0))) -> 1 | G38: =IF(AND($C38<=2,$C38<>0),0,IF($C38=3,OFFSET(G38,-CFF.NumLinha,0)+1,OFFSET(G38,-CFF.NumLinha,0))) -> 5 | H38: =IF(AND($C38<=3,$C38<>0),0,IF($C38=4,OFFSET(H38,-CFF.NumLinha,0)+1,OFFSET(H38,-CFF.NumLinha,0))) -> 0 | I38: =MATCH(0,OFFSET($D38,1,$C38,ROW($A$48)-ROW($A38)),0) -> 10 | J38: =MATCH(OFFSET($D38,0,$C38)+1,OFFSET($D38,1,$C38,ROW($A$48)-ROW($A38)),0) -> 3 | K38: =ROUND(INDEX(PO!T$12:T$58,MATCH($A38,PO!$V$12:$V$58,0)),2)+10^-12 -> 55455.65 | O38: Acumulado (R$) | P38: =IF($B38,ROUND(P37*$N36,2),ROUND(SUMIF(OFFSET($B38,1,0,$D38),TRUE,OFFSET(P38,1,0,$D38))/SUMIF(OFFSET($B38,1,0,$D38),TRUE,OFFSET($K38,1,0,$D38))*$N36,2)) -> 0 | Q38: 0 | R38: 0 | S38: 16636.7 | T38: 38818.96 | U38: 55455.65 | V38: 55455.65 | W38: 55455.65 | AC38: =IF($B38,ROUND(AC37*$N36,2),ROUND(SUMIF(OFFSET($B38,1,0,$D38),TRUE,OFFSET(AC38,1,0,$D38))/SUMIF(OFFSET($B38,1,0,$D38),TRUE,OFFSET($K38,1,0,$D38))*$N36,2)) -> 0
L39: =INDEX(PO!K$12:K$58,MATCH($A41,PO!$V$12:$V$58,0)) -> 1.1.6. | M39: =INDEX(PO!N$12:N$58,MATCH($A41,PO!$V$12:$V$58,0)) -> MURETA DE BALISAMENTO EM CONCRETO | N39: =IF(ROUND(K41,2)=0,K41,ROUND(K41,2)) -> 16526.33 | O39: Parcela (%) | P39: 0 | Q39: 0 | R39: 0 | S39: 0.3 | T39: 0.4 | U39: 0.3 | V39: =IF($B41,0,V40-IF(ISNUMBER(U40),U40,0)) -> 0 | W39: =IF($B41,0,W40-IF(ISNUMBER(V40),V40,0)) -> 0 | AC39: =IF($B41,0,AC40-IF(ISNUMBER(AB40),AB40,0)) -> 0
O40: Acumulado (%) | P40: =MIN(IF($B41,P39+IF(ISNUMBER(O40),O40,0),P41/$N39),1) -> 0 | Q40: =MIN(IF($B41,Q39+IF(ISNUMBER(P40),P40,0),Q41/$N39),1) -> 0 | R40: =MIN(IF($B41,R39+IF(ISNUMBER(Q40),Q40,0),R41/$N39),1) -> 0 | S40: =MIN(IF($B41,S39+IF(ISNUMBER(R40),R40,0),S41/$N39),1) -> 0.3 | T40: =MIN(IF($B41,T39+IF(ISNUMBER(S40),S40,0),T41/$N39),1) -> 0.7 | U40: =MIN(IF($B41,U39+IF(ISNUMBER(T40),T40,0),U41/$N39),1) -> 1 | V40: =MIN(IF($B41,V39+IF(ISNUMBER(U40),U40,0),V41/$N39),1) -> 1 | W40: =MIN(IF($B41,W39+IF(ISNUMBER(V40),V40,0),W41/$N39),1) -> 1 | AC40: =MIN(IF($B41,AC39+IF(ISNUMBER(AB40),AB40,0),AC41/$N39),1) -> 0
A41: =OFFSET(A41,-CFF.NumLinha,0)+1 -> 8 | B41: =$C41>=OFFSET($C41,CFF.NumLinha,0) -> TRUE | C41: =INDEX(PO!A$12:A$58,MATCH($A41,PO!$V$12:$V$58,0)) -> 3 | D41: =IF(ISERROR(J41),I41,SMALL(I41:J41,1))-1 -> 2 | E41: =IF($C41=1,OFFSET(E41,-CFF.NumLinha,0)+1,OFFSET(E41,-CFF.NumLinha,0)) -> 1 | F41: =IF($C41=1,0,IF($C41=2,OFFSET(F41,-CFF.NumLinha,0)+1,OFFSET(F41,-CFF.NumLinha,0))) -> 1 | G41: =IF(AND($C41<=2,$C41<>0),0,IF($C41=3,OFFSET(G41,-CFF.NumLinha,0)+1,OFFSET(G41,-CFF.NumLinha,0))) -> 6 | H41: =IF(AND($C41<=3,$C41<>0),0,IF($C41=4,OFFSET(H41,-CFF.NumLinha,0)+1,OFFSET(H41,-CFF.NumLinha,0))) -> 0 | I41: =MATCH(0,OFFSET($D41,1,$C41,ROW($A$48)-ROW($A41)),0) -> 7 | J41: =MATCH(OFFSET($D41,0,$C41)+1,OFFSET($D41,1,$C41,ROW($A$48)-ROW($A41)),0) -> 3 | K41: =ROUND(INDEX(PO!T$12:T$58,MATCH($A41,PO!$V$12:$V$58,0)),2)+10^-12 -> 16526.33 | O41: Acumulado (R$) | P41: =IF($B41,ROUND(P40*$N39,2),ROUND(SUMIF(OFFSET($B41,1,0,$D41),TRUE,OFFSET(P41,1,0,$D41))/SUMIF(OFFSET($B41,1,0,$D41),TRUE,OFFSET($K41,1,0,$D41))*$N39,2)) -> 0 | Q41: 0 | R41: 0 | S41: 4957.9 | T41: 11568.43 | U41: 16526.33 | V41: 16526.33 | W41: 16526.33 | AC41: =IF($B41,ROUND(AC40*$N39,2),ROUND(SUMIF(OFFSET($B41,1,0,$D41),TRUE,OFFSET(AC41,1,0,$D41))/SUMIF(OFFSET($B41,1,0,$D41),TRUE,OFFSET($K41,1,0,$D41))*$N39,2)) -> 0
L42: =INDEX(PO!K$12:K$58,MATCH($A44,PO!$V$12:$V$58,0)) -> 1.1.7. | M42: =INDEX(PO!N$12:N$58,MATCH($A44,PO!$V$12:$V$58,0)) -> PINTURA E SINALIZAÇÃO | N42: =IF(ROUND(K44,2)=0,K44,ROUND(K44,2)) -> 7327.67 | O42: Parcela (%) | P42: 0 | Q42: 0 | R42: 0 | S42: 0 | T42: 0 | U42: 1 | V42: =IF($B44,0,V43-IF(ISNUMBER(U43),U43,0)) -> 0 | W42: =IF($B44,0,W43-IF(ISNUMBER(V43),V43,0)) -> 0 | AC42: =IF($B44,0,AC43-IF(ISNUMBER(AB43),AB43,0)) -> 0
O43: Acumulado (%) | P43: =MIN(IF($B44,P42+IF(ISNUMBER(O43),O43,0),P44/$N42),1) -> 0 | Q43: =MIN(IF($B44,Q42+IF(ISNUMBER(P43),P43,0),Q44/$N42),1) -> 0 | R43: =MIN(IF($B44,R42+IF(ISNUMBER(Q43),Q43,0),R44/$N42),1) -> 0 | S43: =MIN(IF($B44,S42+IF(ISNUMBER(R43),R43,0),S44/$N42),1) -> 0 | T43: =MIN(IF($B44,T42+IF(ISNUMBER(S43),S43,0),T44/$N42),1) -> 0 | U43: =MIN(IF($B44,U42+IF(ISNUMBER(T43),T43,0),U44/$N42),1) -> 1 | V43: =MIN(IF($B44,V42+IF(ISNUMBER(U43),U43,0),V44/$N42),1) -> 1 | W43: =MIN(IF($B44,W42+IF(ISNUMBER(V43),V43,0),W44/$N42),1) -> 1 | AC43: =MIN(IF($B44,AC42+IF(ISNUMBER(AB43),AB43,0),AC44/$N42),1) -> 0
A44: =OFFSET(A44,-CFF.NumLinha,0)+1 -> 9 | B44: =$C44>=OFFSET($C44,CFF.NumLinha,0) -> TRUE | C44: =INDEX(PO!A$12:A$58,MATCH($A44,PO!$V$12:$V$58,0)) -> 3 | D44: =IF(ISERROR(J44),I44,SMALL(I44:J44,1))-1 -> 2 | E44: =IF($C44=1,OFFSET(E44,-CFF.NumLinha,0)+1,OFFSET(E44,-CFF.NumLinha,0)) -> 1 | F44: =IF($C44=1,0,IF($C44=2,OFFSET(F44,-CFF.NumLinha,0)+1,OFFSET(F44,-CFF.NumLinha,0))) -> 1 | G44: =IF(AND($C44<=2,$C44<>0),0,IF($C44=3,OFFSET(G44,-CFF.NumLinha,0)+1,OFFSET(G44,-CFF.NumLinha,0))) -> 7 | H44: =IF(AND($C44<=3,$C44<>0),0,IF($C44=4,OFFSET(H44,-CFF.NumLinha,0)+1,OFFSET(H44,-CFF.NumLinha,0))) -> 0 | I44: =MATCH(0,OFFSET($D44,1,$C44,ROW($A$48)-ROW($A44)),0) -> 4 | J44: =MATCH(OFFSET($D44,0,$C44)+1,OFFSET($D44,1,$C44,ROW($A$48)-ROW($A44)),0) -> 3 | K44: =ROUND(INDEX(PO!T$12:T$58,MATCH($A44,PO!$V$12:$V$58,0)),2)+10^-12 -> 7327.67 | O44: Acumulado (R$) | P44: =IF($B44,ROUND(P43*$N42,2),ROUND(SUMIF(OFFSET($B44,1,0,$D44),TRUE,OFFSET(P44,1,0,$D44))/SUMIF(OFFSET($B44,1,0,$D44),TRUE,OFFSET($K44,1,0,$D44))*$N42,2)) -> 0 | Q44: 0 | R44: 0 | S44: 0 | T44: 0 | U44: 7327.67 | V44: 7327.67 | W44: 7327.67 | AC44: =IF($B44,ROUND(AC43*$N42,2),ROUND(SUMIF(OFFSET($B44,1,0,$D44),TRUE,OFFSET(AC44,1,0,$D44))/SUMIF(OFFSET($B44,1,0,$D44),TRUE,OFFSET($K44,1,0,$D44))*$N42,2)) -> 0
L45: =INDEX(PO!K$12:K$58,MATCH($A47,PO!$V$12:$V$58,0)) -> 1.1.8. | M45: =INDEX(PO!N$12:N$58,MATCH($A47,PO!$V$12:$V$58,0)) -> SERVIÇOS COMPLEMENTARES - LIMPEZA FINAL DA OBRA | N45: =IF(ROUND(K47,2)=0,K47,ROUND(K47,2)) -> 1619.5 | O45: Parcela (%) | P45: 0 | Q45: 0 | R45: 0 | S45: 0 | T45: 0 | U45: 1 | V45: =IF($B47,0,V46-IF(ISNUMBER(U46),U46,0)) -> 0 | W45: =IF($B47,0,W46-IF(ISNUMBER(V46),V46,0)) -> 0 | AC45: =IF($B47,0,AC46-IF(ISNUMBER(AB46),AB46,0)) -> 0
O46: Acumulado (%) | P46: =MIN(IF($B47,P45+IF(ISNUMBER(O46),O46,0),P47/$N45),1) -> 0 | Q46: =MIN(IF($B47,Q45+IF(ISNUMBER(P46),P46,0),Q47/$N45),1) -> 0 | R46: =MIN(IF($B47,R45+IF(ISNUMBER(Q46),Q46,0),R47/$N45),1) -> 0 | S46: =MIN(IF($B47,S45+IF(ISNUMBER(R46),R46,0),S47/$N45),1) -> 0 | T46: =MIN(IF($B47,T45+IF(ISNUMBER(S46),S46,0),T47/$N45),1) -> 0 | U46: =MIN(IF($B47,U45+IF(ISNUMBER(T46),T46,0),U47/$N45),1) -> 1 | V46: =MIN(IF($B47,V45+IF(ISNUMBER(U46),U46,0),V47/$N45),1) -> 1 | W46: =MIN(IF($B47,W45+IF(ISNUMBER(V46),V46,0),W47/$N45),1) -> 1 | AC46: =MIN(IF($B47,AC45+IF(ISNUMBER(AB46),AB46,0),AC47/$N45),1) -> 0
A47: =OFFSET(A47,-CFF.NumLinha,0)+1 -> 10 | B47: =$C47>=OFFSET($C47,CFF.NumLinha,0) -> TRUE | C47: =INDEX(PO!A$12:A$58,MATCH($A47,PO!$V$12:$V$58,0)) -> 3 | D47: =IF(ISERROR(J47),I47,SMALL(I47:J47,1))-1 -> 0 | E47: =IF($C47=1,OFFSET(E47,-CFF.NumLinha,0)+1,OFFSET(E47,-CFF.NumLinha,0)) -> 1 | F47: =IF($C47=1,0,IF($C47=2,OFFSET(F47,-CFF.NumLinha,0)+1,OFFSET(F47,-CFF.NumLinha,0))) -> 1 | G47: =IF(AND($C47<=2,$C47<>0),0,IF($C47=3,OFFSET(G47,-CFF.NumLinha,0)+1,OFFSET(G47,-CFF.NumLinha,0))) -> 8 | H47: =IF(AND($C47<=3,$C47<>0),0,IF($C47=4,OFFSET(H47,-CFF.NumLinha,0)+1,OFFSET(H47,-CFF.NumLinha,0))) -> 0 | I47: =MATCH(0,OFFSET($D47,1,$C47,ROW($A$48)-ROW($A47)),0) -> 1 | J47: =MATCH(OFFSET($D47,0,$C47)+1,OFFSET($D47,1,$C47,ROW($A$48)-ROW($A47)),0) ->  | K47: =ROUND(INDEX(PO!T$12:T$58,MATCH($A47,PO!$V$12:$V$58,0)),2)+10^-12 -> 1619.5 | O47: Acumulado (R$) | P47: =IF($B47,ROUND(P46*$N45,2),ROUND(SUMIF(OFFSET($B47,1,0,$D47),TRUE,OFFSET(P47,1,0,$D47))/SUMIF(OFFSET($B47,1,0,$D47),TRUE,OFFSET($K47,1,0,$D47))*$N45,2)) -> 0 | Q47: 0 | R47: 0 | S47: 0 | T47: 0 | U47: 1619.5 | V47: 1619.5 | W47: 1619.5 | AC47: =IF($B47,ROUND(AC46*$N45,2),ROUND(SUMIF(OFFSET($B47,1,0,$D47),TRUE,OFFSET(AC47,1,0,$D47))/SUMIF(OFFSET($B47,1,0,$D47),TRUE,OFFSET($K47,1,0,$D47))*$N45,2)) -> 0
C48: -1 | E48: 0 | F48: 0 | G48: 0 | H48: 0
L50: =DADOS!I32 -> 0
L51: Local
L53: =PO!K72 -> 2022-04-11
L54: Data
